Workbook

Sheet Obsah
E3: B1 Vývoj českého školství jako celku
C4: Zdroje dat jsou uvedeny v zápatí jednotlivých tabulek
E6: Obsah
C8: Tabulka 1 | E8: ='B1.1'!H4&" "&'B1.1'!D5 -> Školství celkem – počty škol ve školním/akademickém roce 2009/10 až 2019/20 – podle druhu školy
C10: Tabulka 2 | E10: ='B1.2'!H4&" "&'B1.2'!D5 -> Školství celkem – počty dětí/žáků/studentů ve školním/akademickém roce 2009/10 až 2019/20 – podle druhu školy
C12: Tabulka 3 | E12: ='B1.3'!H4&" "&'B1.3'!D5 -> Školství celkem – počty cizinců ve školním/akademickém roce 2009/10 až 2019/20 – podle druhu školy
C14: Tabulka 4 | E14: ='B1.4'!H4&" "&'B1.4'!D5 -> Školství celkem – přepočtené počty učitelů/akademických pracovníků/nekvalifikovaných ve školním/akademickém roce 2009/10 až 2019/20 – podle druhu školy
C16: Tabulka 5 | E16: ='B1.5'!H4&" "&'B1.5'!D5 -> Školství celkem – veřejné výdaje na školství v běžných cenách v letech 2009 až 2019
C18: Tabulka 6 | E18: ='B1.6'!H4&" "&'B1.6'!D5 -> Školství celkem – veřejné výdaje na školství ve stálých cenách roku 2015 v letech 2009 až 2019
C20: Tabulka 7 | E20: ='B1.7'!H4&" "&'B1.7'!D5 -> Školství celkem – veřejné výdaje na školství v běžných cenách v letech 2009 až 2019 – podle jednotlivých kapitol státního rozpočtu
C22: Tabulka 8 | E22: ='B1.8'!H4&" "&'B1.8'!D5 -> Školství celkem – veřejné výdaje v běžných cenách v letech 2009 až 2019 – podle druhu/typu školy/zařízení
C24: Tabulka 9 | E24: ='B1.9'!H4&" "&'B1.9'!D5 -> Školství celkem – veřejné výdaje ve stálých cenách roku 2015 v letech 2009 až 2019 – podle druhu/typu školy/zařízení
C26: Tabulka 10 | E26: ='B1.10'!H4&" "&'B1.10'!D5 -> Školství celkem – jednotkové výdaje na žáka/studenta v běžných cenách v letech 2009 až 2019 – podle druhu/typu školy/zařízení
C28: Tabulka 11 | E28: ='B1.11'!H4&" "&'B1.11'!D5 -> Školství celkem – jednotkové výdaje na žáka/studenta ve stálých cenách roku 2015 v letech 2009 až 2019 – podle druhu/typu školy/zařízení
C30: Tabulka 12 | E30: ='B1.12'!H4&" "&'B1.12'!D5 -> Školství celkem, neveřejné školy a školská zařízení – výše dotací z rozpočtu kapitoly 333-MŠMT v letech 2009 až 2019 – podle zřizovatele
C32: Tabulka 13 | E32: ='B1.13'!H4&" "&'B1.13'!D5 -> Školství celkem – přepočtené počty zaměstnanců v letech 2009 až 2019
C34: Tabulka 14 | E34: ='B1.14'!$H$4&" "&'B1.14'!$D$5 -> Školství celkem – průměrné měsíční mzdy v letech 2009 až 2019
D35: Obrazová příloha
C37: Graf 1 | E37: ='GB1'!$H$4&" "&'GB1'!$D$5 -> Školství celkem – počet škol ve školním roce 2009/10 až 2019/20 – podle druhu školy
C39: Graf 2 | E39: ='GB2'!$G$4&" "&'GB2'!$D$5 -> Školství celkem – struktura dětí/žáků/studentů ve školním roce 2009/10 až 2019/20 – podle druhu školy
C41: Graf 3 | E41: ='GB3'!$G$4&" "&'GB3'!$D$5 -> Školství celkem – struktura veřejných výdajů (v %) v letech 2009 až 2019
C43: Graf 4 | E43: ='GB4'!$G$4&" "&'GB4'!$D$5 -> Školství celkem – jednotkové výdaje na dítě, žáka, studenta v tis. Kč v letech 2009 až 2019 – podle úrovně vzdělávání
C45: Graf 5 | E45: ='GB5'!$H$4&" "&'GB5'!$D$5 -> Školství celkem – průměrné nominální měsíční mzdy v letech 2009 až 2019
C47: Graf 6 | E47: ='GB6'!$H$4&" "&'GB6'!$D$5 -> Školství celkem – průměrné reálné měsíční mzdy v letech 2009 až 2019

Sheet B1.1
D4: Tab. B1.1: | H4: Školství celkem – počty škol
D5: ve školním/akademickém roce 2009/10 až 2019/20 – podle druhu školy
D7: Druh školy | J7: 2003/04 | K7: 2004/05 | L7: 2005/06 | M7: 2006/07 | N7: 2007/08 | O7: 2008/09 | P7: 2009/10 | Q7: 2010/11 | R7: 2011/12 | S7: 2012/13 | T7: 2013/14 | U7: 2014/15 | V7: 2015/16 | W7: 2016/17 | X7: 2017/18 | Y7: 2018/19 | Z7: 2019/20
E12: Celkem regionální školství1) | J12: . | K12: . | L12: 8681 | M12: 8591 | N12: 8541 | O12: 8493 | P12: 8472 | Q12: 8474 | R12: 8490 | S12: 8426 | T12: 8442 | U12: 8475 | V12: 8500 | W12: 8496 | X12: 8557 | Y12: 8558 | Z12: 8566
E13: v tom | F13: mateřské školy | J13: 5067 | K13: 4994 | L13: 4834 | M13: 4815 | N13: 4808 | O13: 4809 | P13: 4826 | Q13: 4880 | R13: 4931 | S13: 5011 | T13: 5085 | U13: 5158 | V13: 5209 | W13: 5209 | X13: 5269 | Y13: 5287 | Z13: 5304
F14: základní školy | J14: 4838 | K14: 4765 | L14: 4474 | M14: 4197 | N14: 4155 | O14: 4133 | P14: 4125 | Q14: 4123 | R14: 4111 | S14: 4095 | T14: 4095 | U14: 4106 | V14: 4115 | W14: 4140 | X14: 4155 | Y14: 4172 | Z14: 4192
F15: z toho | G15: 1. stupeň | J15: . | K15: . | L15: 4435 | M15: 4155 | N15: 4129 | O15: 4108 | P15: 4098 | Q15: 4096 | R15: 4089 | S15: 4074 | T15: 4074 | U15: 4085 | V15: 4098 | W15: 4125 | X15: 4139 | Y15: 4156 | Z15: 4176
G16: 2. stupeň | J16: . | K16: . | L16: 3052 | M16: 2796 | N16: 2775 | O16: 2760 | P16: 2755 | Q16: 2748 | R16: 2738 | S16: 2718 | T16: 2705 | U16: 2707 | V16: 2710 | W16: 2719 | X16: 2729 | Y16: 2746 | Z16: 2778
F17: střední školy | J17: 2006 | K17: 1966 | L17: 2004 | M17: 1482 | N17: 1447 | O17: 1438 | P17: 1433 | Q17: 1423 | R17: 1393 | S17: 1347 | T17: 1331 | U17: 1310 | V17: 1304 | W17: 1307 | X17: 1308 | Y17: 1290 | Z17: 1284
F18: konzervatoře | J18: 17 | K18: 17 | L18: 17 | M18: 18 | N18: 19 | O18: 18 | P18: 17 | Q18: 18 | R18: 18 | S18: 18 | T18: 18 | U18: 18 | V18: 18 | W18: 18 | X18: 18 | Y18: 18 | Z18: 18
F19: vyšší odborné školy | J19: 169 | K19: 174 | L19: 176 | M19: 174 | N19: 177 | O19: 184 | P19: 184 | Q19: 182 | R19: 180 | S19: 178 | T19: 174 | U19: 174 | V19: 171 | W19: 168 | X19: 166 | Y19: 166 | Z19: 160
E20: Veřejné a soukromé vysoké školy2) | J20: 52 | K20: 60 | L20: 64 | M20: 63 | N20: 68 | O20: 71 | P20: 71 | Q20: 70 | R20: 71 | S20: 70 | T20: 69 | U20: 69 | V20: 67 | W20: 63 | X20: 62 | Y20: 62 | Z20: 58
D21: Komentáře: | Z21: Zdroj: databáze MŠMT
D22: 1) | E22: Počet právních subjektů vykonávajících činnost školy.
D23: 2) | E23: Počet institucí, na kterých se realizuje daný typ vzdělávání a k 31. 12. daného roku byla vykázána data.

Sheet B1.2
D4: Tab. B1.2: | H4: Školství celkem – počty dětí/žáků/studentů
D5: ve školním/akademickém roce 2009/10 až 2019/20 – podle druhu školy
D7: Druh školy | J7: 2003/04 | K7: 2004/05 | L7: 2005/06 | M7: 2006/07 | N7: 2007/08 | O7: 2008/09 | P7: 2009/10 | Q7: 2010/11 | R7: 2011/12 | S7: 2012/13 | T7: 2013/14 | U7: 2014/15 | V7: 2015/16 | W7: 2016/17 | X7: 2017/18 | Y7: 2018/19 | Z7: 2019/20
E12: Školství celkem | J12: =J13+J21 -> 2131498 | K12: =K13+K21 -> 2115418 | L12: 2098114 | M12: 2085877 | N12: 2081646 | O12: 2081573 | P12: 2085901 | Q12: 2080355 | R12: 2063314 | S12: 2046570 | T12: 2039783 | U12: 2034891 | V12: 2029766 | W12: 2030655 | X12: 2033117 | Y12: 2037846 | Z12: 2052398
E13: Celkem regionální školství1) | J13: 1887775 | K13: 1850642 | L13: 1808650 | M13: 1769701 | N13: 1737704 | O13: 1713523 | P13: 1696911 | Q13: 1684376 | R13: 1671275 | S13: 1665679 | T13: 1672036 | U13: 1687998 | V13: 1703238 | W13: 1719487 | X13: 1734063 | Y13: 1747747 | Z13: 1763483
E14: v tom | F14: mateřské školy | J14: 284166 | K14: 284218 | L14: 282183 | M14: 285419 | N14: 291194 | O14: 301620 | P14: 314008 | Q14: 328612 | R14: 342521 | S14: 354340 | T14: 363568 | U14: 367603 | V14: 367361 | W14: 362653 | X14: 362756 | Y14: 363776 | Z14: 364909
F15: základní školy | J15: 992770 | K15: 953655 | L15: 916575 | M15: 876513 | N15: 844863 | O15: 816015 | P15: 794459 | Q15: 789486 | R15: 794642 | S15: 807950 | T15: 827654 | U15: 854137 | V15: 880251 | W15: 906188 | X15: 926108 | Y15: 940928 | Z15: 952946
F16: z toho | G16: 1. stupeň | J16: . | K16: . | L16: 473269 | M16: 462820 | N16: 458046 | O16: 458198 | P16: 460754 | Q16: 465380 | R16: 474327 | S16: 488106 | T16: 505983 | U16: 529604 | V16: 551428 | W16: 568966 | X16: 575699 | Y16: 573442 | Z16: 563346
G17: 2. stupeň | J17: . | K17: . | L17: 443306 | M17: 413693 | N17: 386817 | O17: 357817 | P17: 333705 | Q17: 324106 | R17: 320315 | S17: 319844 | T17: 321671 | U17: 324533 | V17: 328823 | W17: 337222 | X17: 350409 | Y17: 367486 | Z17: 389600
F18: střední školy | J18: 576615 | K18: 579505 | L18: 577605 | M18: 576585 | N18: 569267 | O18: 564326 | P18: 556260 | Q18: 532918 | R18: 501220 | S18: 470754 | T18: 448792 | U18: 435542 | V18: 427107 | W18: 424849 | X18: 421535 | Y18: 420814 | Z18: 423838
F19: konzervatoře | J19: 3543 | K19: 3505 | L19: 3495 | M19: 3534 | N19: 3606 | O19: 3535 | P19: 3435 | Q19: 3560 | R19: 3557 | S19: 3655 | T19: 3690 | U19: 3752 | V19: 3733 | W19: 3795 | X19: 3781 | Y19: 3813 | Z19: 3836
F20: vyšší odborné školy | J20: 30681 | K20: 29759 | L20: 28792 | M20: 27650 | N20: 28774 | O20: 28027 | P20: 28749 | Q20: 29800 | R20: 29335 | S20: 28980 | T20: 28332 | U20: 26964 | V20: 24786 | W20: 22002 | X20: 19883 | Y20: 18416 | Z20: 17954
E21: Veřejné a soukromé vysoké školy2) | J21: 243723 | K21: 264776 | L21: 289464 | M21: 316176 | N21: 343942 | O21: 368050 | P21: 388990 | Q21: 395979 | R21: 392039 | S21: 380891 | T21: 367747 | U21: 346893 | V21: 326528 | W21: 311168 | X21: 299054 | Y21: 290099 | Z21: 288915
D22: Z toho dívky/ženy
E23: Školství celkem | J23: =J24+J32 -> 1045060 | K23: =K24+K32 -> 1042803 | L23: 1037194 | M23: 1035560 | N23: 1038534 | O23: 1043683 | P23: 1048367 | Q23: 1046879 | R23: 1038728 | S23: 1031077 | T23: 1025861 | U23: 1022277 | V23: 1017382 | W23: 1016480 | X23: 1016747 | Y23: 1017859 | Z23: 1025273
E24: Celkem regionální školství1) | J24: 924356 | K24: 908094 | L24: 886522 | M24: 867709 | N24: 852673 | O24: 841083 | P24: 831991 | Q24: 825353 | R24: 819122 | S24: 816918 | T24: 819363 | U24: 827646 | V24: 835070 | W24: 842251 | X24: 848938 | Y24: 855724 | Z24: 864078
E25: v tom | F25: mateřské školy | J25: 135892 | K25: 136002 | L25: 134727 | M25: 136604 | N25: 139808 | O25: 144502 | P25: 150613 | Q25: 157799 | R25: 164387 | S25: 170705 | T25: 175049 | U25: 176574 | V25: 176418 | W25: 174058 | X25: 174333 | Y25: 174772 | Z25: 175540
F26: základní školy | J26: 481252 | K26: 461978 | L26: 442206 | M26: 422041 | N26: 406776 | O26: 392745 | P26: 382748 | Q26: 381028 | R26: 384212 | S26: 391115 | T26: 400894 | U26: 414331 | V26: 427435 | W26: 440240 | X26: 449654 | Y26: 456757 | Z26: 462903
F27: z toho | G27: 1. stupeň | J27: . | K27: . | L27: 229244 | M27: 224264 | N27: 221913 | O27: 222245 | P27: 223589 | Q27: 225831 | R27: 230709 | S27: 237601 | T27: 246310 | U27: 258230 | V27: 269136 | W27: 277730 | X27: 281087 | Y27: 279721 | Z27: 274520
G28: 2. stupeň | J28: . | K28: . | L28: 212962 | M28: 197777 | N28: 184863 | O28: 170500 | P28: 159159 | Q28: 155197 | R28: 153503 | S28: 153514 | T28: 154584 | U28: 156101 | V28: 158299 | W28: 162510 | X28: 168567 | Y28: 177036 | Z28: 188383
F29: střední školy | J29: 284453 | K29: 287383 | L29: 287263 | M29: 287185 | N29: 283399 | O29: 281527 | P29: 275829 | Q29: 262889 | R29: 247402 | S29: 232209 | T29: 220830 | U29: 214988 | V29: 210875 | W29: 209632 | X29: 208057 | Y29: 208308 | Z29: 209807
F30: konzervatoře | J30: 2080 | K30: 2063 | L30: 2061 | M30: 2091 | N30: 2161 | O30: 2141 | P30: 2099 | Q30: 2176 | R30: 2171 | S30: 2247 | T30: 2285 | U30: 2303 | V30: 2324 | W30: 2387 | X30: 2430 | Y30: 2444 | Z30: 2441
F31: vyšší odborné školy | J31: 20679 | K31: 20668 | L31: 20265 | M31: 19788 | N31: 20529 | O31: 20168 | P31: 20702 | Q31: 21461 | R31: 20950 | S31: 20642 | T31: 20305 | U31: 19450 | V31: 18018 | W31: 15934 | X31: 14464 | Y31: 13443 | Z31: 13387
E32: Veřejné a soukromé vysoké školy2) | J32: 120704 | K32: 134709 | L32: 150672 | M32: 167851 | N32: 185861 | O32: 202600 | P32: 216376 | Q32: 221526 | R32: 219606 | S32: 214159 | T32: 206498 | U32: 194631 | V32: 182312 | W32: 174229 | X32: 167809 | Y32: 162135 | Z32: 161195
D33: Komentáře: | Z33: Zdroj: databáze MŠMT
D34: 1) | E34: Údaje za všechny druhy škol v regionálním školství jsou za počty studií k 30. 9. daného roku (u VOŠ od roku 2016/17 k 31. 10.).
D35: 2) | E35: Údaje za VŠ jsou ve fyzických osobách k 31. 12. daného roku.

Sheet B1.3
D4: Tab. B1.3: | H4: Školství celkem – počty cizinců
D5: ve školním/akademickém roce 2009/10 až 2019/20 – podle druhu školy
D7: Druh školy | J7: 2003/04 | K7: 2004/05 | L7: 2005/06 | M7: 2006/07 | N7: 2007/08 | O7: 2008/09 | P7: 2009/10 | Q7: 2010/11 | R7: 2011/12 | S7: 2012/13 | T7: 2013/14 | U7: 2014/15 | V7: 2015/16 | W7: 2016/17 | X7: 2017/18 | Y7: 2018/19 | Z7: 2019/20
E12: Školství celkem | J12: =J13+J19 -> 33348 | K12: =K13+K19 -> 37113 | L12: 41722 | M12: 45213 | N12: 49831 | O12: 54816 | P12: 60605 | Q12: 64857 | R12: 67242 | S12: 69129 | T12: 71640 | U12: 74234 | V12: 78210 | W12: 83116 | X12: 86342 | Y12: 90434 | Z12: 95357
E13: Celkem regionální školství1) | J13: 20268 | K13: =SUM(K14:K18) -> 20042 | L13: =SUM(L14:L18) -> 20838 | M13: 21346 | N13: 22786 | O13: 24690 | P13: 26169 | Q13: 27352 | R13: 28525 | S13: 29688 | T13: 31295 | U13: 33297 | V13: 36145 | W13: 39619 | X13: 42511 | Y13: 45588 | Z13: 48916
E14: v tom | F14: mateřské školy | J14: 3252 | K14: 3244 | L14: 3213 | M14: 2811 | N14: 3078 | O14: 3535 | P14: 3963 | Q14: 4223 | R14: 4714 | S14: 5434 | T14: 6307 | U14: 7214 | V14: 8302 | W14: 9494 | X14: 10469 | Y14: 11343 | Z14: 11942
F15: základní školy | J15: 12973 | K15: 12113 | L15: 12279 | M15: 12504 | N15: 12963 | O15: 13583 | P15: 13839 | Q15: 14109 | R15: 14344 | S15: 14551 | T15: 15109 | U15: 16477 | V15: 18281 | W15: 20237 | X15: 21992 | Y15: 24026 | Z15: 26527
F16: střední školy | J16: 3584 | K16: 4250 | L16: 4940 | M16: 5615 | N16: 6314 | O16: 7134 | P16: 7900 | Q16: 8458 | R16: 8852 | S16: 9024 | T16: 9147 | U16: 8837 | V16: 8763 | W16: 9063 | X16: 9195 | Y16: 9305 | Z16: 9496
F17: konzervatoře | J17: 74 | K17: 82 | L17: 93 | M17: 112 | N17: 110 | O17: 131 | P17: 118 | Q17: 136 | R17: 151 | S17: 169 | T17: 185 | U17: 217 | V17: 212 | W17: 214 | X17: 208 | Y17: 209 | Z17: 219
F18: vyšší odborné školy | J18: 385 | K18: 353 | L18: 313 | M18: 304 | N18: 321 | O18: 307 | P18: 349 | Q18: 426 | R18: 464 | S18: 510 | T18: 547 | U18: 552 | V18: 587 | W18: 611 | X18: 647 | Y18: 705 | Z18: 732
E19: Veřejné a soukromé vysoké školy2) | J19: 13080 | K19: 17071 | L19: 20884 | M19: 23867 | N19: 27045 | O19: 30126 | P19: 34436 | Q19: 37505 | R19: 38717 | S19: 39441 | T19: 40345 | U19: 40937 | V19: 42065 | W19: 43497 | X19: 43831 | Y19: 44846 | Z19: 46441
D20: Z toho dívky/ženy
E21: Školství celkem | J21: =J22+J28 -> 16332 | K21: 18300 | L21: 20678 | M21: 22540 | N21: 24989 | O21: 27633 | P21: 30793 | Q21: 33253 | R21: 34411 | S21: 35485 | T21: 36866 | U21: 38215 | V21: 40049 | W21: 42517 | X21: 44033 | Y21: 45914 | Z21: 48509
E22: Celkem regionální školství1) | J22: 9749 | K22: =SUM(K23:K27) -> 9665 | L22: =SUM(L23:L27) -> 10043 | M22: 10291 | N22: 11068 | O22: 12015 | P22: 12710 | Q22: 13437 | R22: 13931 | S22: 14591 | T22: 15380 | U22: 16404 | V22: 17761 | W22: 19309 | X22: 20736 | Y22: 22270 | Z22: 23890
E23: v tom | F23: mateřské školy | J23: 1538 | K23: 1500 | L23: 1521 | M23: 1326 | N23: 1469 | O23: 1700 | P23: 1894 | Q23: 2053 | R23: 2235 | S23: 2598 | T23: 3011 | U23: 3494 | V23: 4000 | W23: 4542 | X23: 4984 | Y23: 5402 | Z23: 5712
F24: základní školy | J24: 6155 | K24: 5798 | L24: 5839 | M24: 5916 | N24: 6175 | O24: 6477 | P24: 6590 | Q24: 6822 | R24: 6886 | S24: 7051 | T24: 7305 | U24: 7981 | V24: 8882 | W24: 9773 | X24: 10600 | Y24: 11595 | Z24: 12831
F25: střední školy | J25: 1767 | K25: 2103 | L25: 2432 | M25: 2779 | N25: 3147 | O25: 3566 | P25: 3929 | Q25: 4207 | R25: 4426 | S25: 4497 | T25: 4566 | U25: 4415 | V25: 4338 | W25: 4447 | X25: 4560 | Y25: 4648 | Z25: 4693
F26: konzervatoře | J26: 46 | K26: 42 | L26: 48 | M26: 58 | N26: 53 | O26: 66 | P26: 61 | Q26: 77 | R26: 87 | S26: 99 | T26: 111 | U26: 125 | V26: 130 | W26: 133 | X26: 139 | Y26: 140 | Z26: 141
F27: vyšší odborné školy | J27: 243 | K27: 222 | L27: 203 | M27: 212 | N27: 224 | O27: 206 | P27: 236 | Q27: 278 | R27: 297 | S27: 346 | T27: 387 | U27: 389 | V27: 411 | W27: 414 | X27: 453 | Y27: 485 | Z27: 513
E28: Veřejné a soukromé vysoké školy2) | J28: 6583 | K28: 8635 | L28: 10635 | M28: 12249 | N28: 13921 | O28: 15618 | P28: 18083 | Q28: 19816 | R28: 20480 | S28: 20894 | T28: 21486 | U28: 21811 | V28: 22288 | W28: 23208 | X28: 23297 | Y28: 23644 | Z28: 24619
D29: Komentáře: | Z29: Zdroj: databáze MŠMT
D30: 1) | E30: Údaje za všechny druhy škol v regionálním školství jsou za počty studií k 30. 9. daného roku (u VOŠ od roku 2016/17 k 31. 10.).
D31: 2) | E31: Údaje za VŠ jsou ve fyzických osobách k 31. 12. daného roku.

Sheet B1.4
D4: Tab. B1.4: | H4: Školství celkem – přepočtené počty učitelů/akademických pracovníků/nekvalifikovaných
D5: ve školním/akademickém roce 2009/10 až 2019/20 – podle druhu školy
D7: Druh školy | J7: 2003/04 | K7: 2004/05 | L7: 2005/06 | M7: 2006/07 | N7: 2007/08 | O7: 2008/09 | P7: 2009/10 | Q7: 2010/11 | R7: 2011/12 | S7: 2012/13 | T7: 2013/14 | U7: 2014/15 | V7: 2015/16 | W7: 2016/17 | X7: 2017/18 | Y7: 2018/19 | Z7: 2019/20
E12: Celkem regionální školství | J12: . | K12: . | L12: =L13+L14+L17+L18+L19 -> 135936.5 | M12: =M13+M14+M17+M18+M19 -> 135353.4 | N12: 133783.1 | O12: 132610.7 | P12: 132294.5 | Q12: 132015.7 | R12: 131482.6 | S12: 130199.5 | T12: 130006.6 | U12: 130288.1 | V12: 130850.6 | W12: 131920 | X12: 133914 | Y12: 135548.3 | Z12: 140891.3
E13: v tom | F13: mateřské školy | J13: . | K13: . | L13: 22484.6 | M13: 22367.7 | N13: 22744.3 | O13: 23567.8 | P13: 24584.3 | Q13: 25736.8 | R13: 26780.6 | S13: 27739.2 | T13: 28583 | U13: 29283.4 | V13: 29513.8 | W13: 29629.5 | X13: 30303.2 | Y13: 30580.8 | Z13: 32372.6
F14: základní školy | J14: . | K14: . | L14: 63157.6 | M14: 62657.6 | N14: 61069.2 | O14: 59492.3 | P14: 58417.3 | Q14: 58023 | R14: 57814.8 | S14: 57668.9 | T14: 58269.1 | U14: 59128.7 | V14: 60220.7 | W14: 61634.9 | X14: 63004.8 | Y14: 64345.3 | Z14: 67040.9
F15: v tom | G15: 1. stupeň | J15: . | K15: . | L15: 27586 | M15: 27727.1 | N15: 27520 | O15: 27529.2 | P15: 27634.9 | Q15: 27796 | R15: 28114.6 | S15: 28374.9 | T15: 29025.1 | U15: 29888.3 | V15: 30829 | W15: 31827.9 | X15: 32452.3 | Y15: 32829.7 | Z15: 33463.7
G16: 2. stupeň | J16: . | K16: . | L16: 35571.6 | M16: 34930.5 | N16: 33453.2 | O16: 31963.1 | P16: 30782.4 | Q16: 30227 | R16: 29700.2 | S16: 29294 | T16: 29244 | U16: 29240.4 | V16: 29391.7 | W16: 29807 | X16: 30552.5 | Y16: 31515.6 | Z16: 33577.2
F17: střední školy | J17: . | K17: . | L17: 47352.1 | M17: 47452 | N17: 47124.3 | O17: 46734.9 | P17: 46488.8 | Q17: 45384.9 | R17: 43875.8 | S17: 41788.8 | T17: 40214.1 | U17: 39070.1 | V17: 38385.9 | W17: 38069.6 | X17: 38114.9 | Y17: 38223.4 | Z17: 39133.3
F18: konzervatoře | J18: . | K18: . | L18: 1019.6 | M18: 1083.9 | N18: 1046.3 | O18: 1000.5 | P18: 997.9 | Q18: 1030 | R18: 1120.7 | S18: 1126.6 | T18: 1157.9 | U18: 1063.4 | V18: 1062.9 | W18: 1059.7 | X18: 1040.8 | Y18: 1035.8 | Z18: 1069.8
F19: vyšší odborné školy | J19: . | K19: . | L19: 1922.6 | M19: 1792.2 | N19: 1799 | O19: 1815.2 | P19: 1806.2 | Q19: 1841 | R19: 1890.7 | S19: 1876 | T19: 1782.5 | U19: 1742.5 | V19: 1667.3 | W19: 1526.3 | X19: 1450.3 | Y19: 1363 | Z19: 1274.7
E20: Veřejné vysoké školy1) | J20: 14221 | K20: 14623 | L20: 15015.9 | M20: 15524.186 | N20: 16525.9 | O20: 16976.598 | P20: 17271.643 | Q20: 16990.582 | R20: 16418.91 | S20: 15449.309 | T20: 15026.07 | U20: 15072.743 | V20: 15299.711 | W20: 15585.956 | X20: 15038.25 | Y20: 14590.003 | Z20: 14536.699
D21: z toho nekvalifikovaní
E22: Celkem regionální školství | J22: . | K22: . | L22: =L23+L24+L27+L28+L29 -> 18494.4 | M22: =M23+M24+M27+M28+M29 -> 18291.7 | N22: 18106.7 | O22: 17345.2 | P22: 16883.4 | Q22: 16148.4 | R22: 18023.2 | S22: 14933.7 | T22: 13386.7 | U22: 10962.2 | V22: 6708.8 | W22: 6333.2 | X22: 6579.5 | Y22: 7180.3 | Z22: 9067
E23: v tom | F23: mateřské školy | J23: . | K23: . | L23: 1429.4 | M23: 1545.9 | N23: 1558.1 | O23: 1864.3 | P23: 2183.5 | Q23: 2633.9 | R23: 3134.3 | S23: 2898.8 | T23: 2862.5 | U23: 2531.8 | V23: 1550.3 | W23: 1313 | X23: 1252.5 | Y23: 1314.9 | Z23: 1888.3
F24: základní školy | J24: . | K24: . | L24: =L25+L26 -> 9817.9 | M24: =M25+M26 -> 9564.6 | N24: =N25+N26 -> 9590.3 | O24: 8943.9 | P24: 8272.4 | Q24: 7650 | R24: 8157.5 | S24: 6834.4 | T24: 6319.7 | U24: 5223.1 | V24: 3423.4 | W24: 3554.1 | X24: 3928.5 | Y24: 4364.9 | Z24: 5312.5
F25: v tom | G25: 1. stupeň | J25: . | K25: . | L25: 4824.8 | M25: 4538.2 | N25: 4441.1 | O25: 4193.4 | P25: 3910.1 | Q25: 3676.4 | R25: 3983.5 | S25: 3344.5 | T25: 3199.6 | U25: 2757 | V25: 1933.3 | W25: 2026.7 | X25: 2279 | Y25: 2444.6 | Z25: 2847.8
G26: 2. stupeň | J26: . | K26: . | L26: 4993.1 | M26: 5026.4 | N26: 5149.2 | O26: 4750.5 | P26: 4362.3 | Q26: 3973.6 | R26: 4174 | S26: 3489.9 | T26: 3120.1 | U26: 2466.1 | V26: 1490.1 | W26: 1527.4 | X26: 1649.5 | Y26: 1920.3 | Z26: 2464.7
F27: střední školy | J27: . | K27: . | L27: 7126.5 | M27: 7056 | N27: 6849.8 | O27: 6428.3 | P27: 6324.4 | Q27: 5758.6 | R27: 6580.3 | S27: 5093.7 | T27: 4131.2 | U27: 3123.8 | V27: 1686.7 | W27: 1437 | X27: 1369.8 | Y27: 1467.4 | Z27: 1834.5
F28: konzervatoře | J28: . | K28: . | L28: 20.8 | M28: 14.1 | N28: 8.7 | O28: 10.3 | P28: 7.1 | Q28: 11.2 | R28: 26.1 | S28: 8.5 | T28: 11.3 | U28: 27.8 | V28: 12 | W28: 8.7 | X28: 9.2 | Y28: 8.8 | Z28: 8.2
F29: vyšší odborné školy | J29: . | K29: . | L29: 99.8 | M29: 111.1 | N29: 99.8 | O29: 98.4 | P29: 96 | Q29: 94.7 | R29: 125 | S29: 98.3 | T29: 62 | U29: 55.7 | V29: 36.4 | W29: 20.4 | X29: 19.5 | Y29: 24.3 | Z29: 23.5
E30: Veřejné vysoké školy | J30: . | K30: . | L30: . | M30: . | N30: . | O30: . | P30: . | Q30: . | R30: . | S30: . | T30: . | U30: . | V30: . | W30: . | X30: . | Y30: . | Z30: .
D31: Komentáře: | Z31: Zdroj: databáze MŠMT
D32: 1) | E32: Údaje za zaměstnance financované z prostředků kapitoly 333 státního rozpočtu.

Sheet B1.5
D4: Tab. B1.5: | H4: Školství celkem – veřejné výdaje na školství v běžných cenách
D5: v letech 2009 až 2019
D6: Včetně výdajů Ministerstva obrany. | Z6: v mld. Kč
J7: 2003 | K7: 2004 | L7: 2005 | M7: 2006 | N7: 2007 | O7: 2008 | P7: 2009 | Q7: 2010 | R7: 2011 | S7: 2012 | T7: 2013 | U7: 2014 | V7: 2015 | W7: 2016 | X7: 2017 | Y7: 2018 | Z7: 2019
J11: 1) | K11: 1) | L11: 1) | M11: 1) | N11: 1) | O11: 1),2)
E12: Hrubý domácí produkt v běžných cenách | J12: 2688.107 | K12: 3057.66 | L12: 3257.972 | M12: 3507.131 | N12: 3840.117 | O12: 4024.117 | P12: 3930.409 | Q12: 3992.87 | R12: 4062.323 | S12: 4088.912 | T12: 4142.811 | U12: 4345.766 | V12: 4625.378 | W12: 4767.873 | X12: 5110.743 | Y12: 5408.766 | Z12: 5748.668
E13: Výdaje na školství celkem | J13: 115.8565944 | K13: 123.0416334 | L13: 130.3191627 | M13: 142.8340917 | N13: 152.9877688 | O13: 151.0030003 | P13: 163.9430102 | Q13: 152.699155 | R13: 156.0479144 | S13: 154.612741 | T13: 155.3660078 | U13: 160.8698011 | V13: 166.2188576 | W13: 162.2466978 | X13: 181.5546244 | Y13: 221.5 | Z13: 247.9172318
E14: Výdaje na školství v % HDP | J14: =J13/J12 -> 0.04309969597 | K14: =K13/K12 -> 0.04024045625 | L14: 0.04000008677 | M14: 0.04072676262 | N14: 0.03983935094 | O14: 0.03752450545 | P14: 0.04171143771 | Q14: 0.03824295682 | R14: 0.03841346797 | S14: 0.03781268489 | T14: 0.03750255752 | U14: 0.03701759393 | V14: 0.0359362754 | W14: 0.03402915677 | X14: =X13/X12 -> 0.03552411546 | Y14: 0.04095203971 | Z14: 0.04312603054
E15: Výdaje státního rozpočtu | J15: 808.718 | K15: 862.8916749 | L15: 922.7980182 | M15: 1020.640224 | N15: 1092.274577 | O15: 1083.943645 | P15: 1167.009054 | Q15: 1192.160779 | R15: 1262.900885 | S15: 1263.063936 | T15: 1264.983842 | U15: 1273.368334 | V15: 1308.071801 | W15: 1329.139758 | X15: 1483.667943 | Y15: 1778.845365 | Z15: 200.433499
D16: Index spotřebitelských cen a meziroční inflace
E17: Index spotřebitelských cen (rok 2015 = 100) | J17: 95.5 | K17: 98.1 | L17: 100 | M17: 83 | N17: 85.3 | O17: 90.7 | P17: 91.7 | Q17: 93 | R17: 94.8 | S17: 97.9 | T17: 99.3 | U17: 99.7 | V17: 100 | W17: 100.7 | X17: 103.1 | Y17: 105.3 | Z17: 108.3
E18: Meziroční inflace | J18: 0.001 | K18: 0.028 | L18: 0.019 | M18: 0.025 | N18: 0.028 | O18: 0.063 | P18: 0.01 | Q18: 0.015 | R18: 0.019 | S18: 0.033 | T18: 0.014 | U18: 0.004 | V18: 0.003 | W18: 0.007 | X18: 0.025 | Y18: 0.021 | Z18: 0.028
D19: Komentáře: | Z19: Zdroj: Státní závěrečný účet ČR; ZÚ - kapitola 333-MŠMT; 700-Obce a DSO, KÚ; ZÚ ostatních resortů; ČSÚ; monitor.statnipokladna.cz
D20: 1) | E20: Z důvodu konsolidace nejsou zahrnuty z daných tříd následující položky: 5321, 5323,5329, 5344, 5345, 5349, 5366, 5641, 5642, 5649, 6341, 6342, 6349, 6441, 6442, 6449.
D21: 2) | E21: Meziroční snížení výdajů v roce 2008 je dáno aplikací zákona č. 26/2008 Sb. a z něj vyplývajícím nepřeváděním nevyčerpaných prostředků OSS do rezervních fondů, a tudíž jejich nezahrnutím do čerpání.

Sheet B1.7
D4: Tab. B1.7: | H4: Školství celkem – veřejné výdaje na školství v běžných cenách
D5: v letech 2009 až 2019 – podle jednotlivých kapitol státního rozpočtu
D6: Včetně výdajů Ministerstva obrany. | Z6: v mld. Kč
J7: 2003 | K7: 2004 | L7: 2005 | M7: 2006 | N7: 2007 | O7: 2008 | P7: 2009 | Q7: 2010 | R7: 2011 | S7: 2012 | T7: 2013 | U7: 2014 | V7: 2015 | W7: 2016 | X7: 2017 | Y7: 2018 | Z7: 2019
O11: 2)
E12: z rozpočtu | F12: MŠMT (kapitola 333) | J12: 90.55035892 | K12: 95.59806376 | L12: 102.5772496 | M12: 110.8819227 | N12: 123.1991543 | O12: 119.3826984 | P12: 127.6495967 | Q12: 124.266208 | R12: 138.9591331 | S12: 138.1844807 | T12: 138.4428364 | U12: 140.046248 | V12: 143.6675747 | W12: 140.5642929 | X12: 157.51144 | Y12: 174.9699217 | Z12: 196.728637
F13: obcí a DSO (kapitola 700) | J13: 56.46254528 | K13: 59.34352732 | L13: 26.26204 | M13: 30.32103758 | N13: 28.94832135 | O13: 31.88567351 | P13: 35.95729478 | Q13: 36.79208926 | R13: 37.10872717 | S13: 34.24249036 | T13: 35.2243727 | U13: 38.68491453 | V13: 39.47180008 | W13: 35.65127979 | X13: 43.21749248 | Y13: 49.7 | Z13: 58.3108074
F14: krajských úřadů (kapitola 700) | J14: 30.18948716 | K14: 32.01729367 | L14: 68.41896678 | M14: 72.73313529 | N14: 75.25639084 | O14: 77.53711407 | P14: 82.64667006 | Q14: 81.00950021 | R14: 81.57184035 | S14: 83.06004284 | T14: 83.05081486 | U14: 85.80538118 | V14: 87.84822648 | W14: 89.94818936 | X14: 99.3496773 | Y14: 115.9811241 | Z14: 133.6534961
F15: konsolidace výdajů 1) | J15: -62.95461886 | K15: -65.61084508 | L15: -68.7040819 | M15: -72.68765616 | N15: -75.81887675 | O15: -79.00575911 | P15: -83.45005755 | Q15: -80.15712342 | R15: -84.87090478 | S15: -85.11274843 | T15: -84.99306122 | U15: -86.94590967 | V15: -89.37862005 | W15: -93.89134932 | X15: -106.4364763 | Y15: -121.4176698 | Z15: -144.4805705
F16: Ministerstva obrany (kapitola 307)3) | J16: 1.60087268 | K16: 1.69042778 | L16: 1.76198821 | M16: 1.58250428 | N16: 1.40277912 | O16: 1.20327347 | P16: 1.13950619 | Q16: 1.09025692 | R16: 0.95317303 | S16: 0.99560431 | T16: 1.080211493 | U16: 1.122045386 | V16: 1.2392 | W16: 1.17605883 | X16: 1.180931503 | Y16: 1.3 | Z16: 1.506828
D17: Komentáře: | Z17: Zdroj: Státní závěrečný účet ČR; ZÚ – kapitola 333-MŠMT; 700-Obce a DSO, KÚ; ZÚ ostatních resortů; ČSÚ; monitor.statnipokladna.cz
D18: 1) | E18: Celkové výdaje na vzdělávání a školské služby - Oddíl 31 a 32 odvětvového třídění rozpočtové skladby po konsolidaci na úrovni územních rozpočtů a státního rozpočtu. Konsolidovány položky rozpočtové skladby: na úrovni státního rozpočtu - 5321, 5323, 5329, 5342, 5345, 5346, 5349, 6341, 6342, 6343, 6344, 6345, 6349, 6361, 6362 a podseskupení položek 64xx.
D19: 2) | E19: Meziroční snížení výdajů v roce 2008 je dáno aplikací zákona č. 26/2008 Sb. a z něj vyplývajícím nepřeváděním nevyčerpaných prostředků OSS do rezervních fondů, a tudíž jejich nezahrnutím do čerpání.
D20: 3) | E20: Z výdajů kapitoly je již odečten transfer obcím a krajským úřadům.

Sheet B1.6
D4: Tab. B1.6: | H4: Školství celkem – veřejné výdaje na školství ve stálých cenách roku 2015
D5: v letech 2009 až 2019
D6: Včetně výdajů Ministerstva obrany. | Z6: v mld. Kč
J7: 2003 | K7: 2004 | L7: 2005 | M7: 2006 | N7: 2007 | O7: 2008 | P7: 2009 | Q7: 2010 | R7: 2011 | S7: 2012 | T7: 2013 | U7: 2014 | V7: 2015 | W7: 2016 | X7: 2017 | Y7: 2018 | Z7: 2019
J11: 1) | K11: 1) | L11: 1) | M11: 1) | N11: 1) | O11: 1),2)
E12: Výdaje státního rozpočtu | J12: ='B1.5'!J15/'B1.5'!J17*100 -> 846.8251309 | K12: ='B1.5'!K15/'B1.5'!K17*100 -> 879.6041538 | L12: ='B1.5'!L15/'B1.5'!L17*100 -> 922.7980182 | M12: ='B1.5'!M15/'B1.5'!M17*100 -> 1229.687016 | N12: ='B1.5'!N15/'B1.5'!N17*100 -> 1280.509469 | O12: ='B1.5'!O15/'B1.5'!O17*100 -> 1195.086709 | P12: ='B1.5'!P15/'B1.5'!P17*100 -> 1272.638009 | Q12: ='B1.5'!Q15/'B1.5'!Q17*100 -> 1281.893311 | R12: ='B1.5'!R15/'B1.5'!R17*100 -> 1332.173929 | S12: ='B1.5'!S15/'B1.5'!S17*100 -> 1290.157238 | T12: ='B1.5'!T15/'B1.5'!T17*100 -> 1273.90115 | U12: ='B1.5'!U15/'B1.5'!U17*100 -> 1277.199934 | V12: ='B1.5'!V15/'B1.5'!V17*100 -> 1308.071801 | W12: ='B1.5'!W15/'B1.5'!W17*100 -> 1319.900455 | X12: ='B1.5'!X15/'B1.5'!X17*100 -> 1439.05717 | Y12: ='B1.5'!Y15/'B1.5'!Y17*100 -> 1689.311837 | Z12: ='B1.5'!Z15/'B1.5'!Z17*100 -> 185.0724829
E13: Výdaje na školství celkem | J13: ='B1.5'!J13/'B1.5'!J17*100 -> 121.3158057 | K13: ='B1.5'!K13/'B1.5'!K17*100 -> 125.4247028 | L13: ='B1.5'!L13/'B1.5'!L17*100 -> 130.3191627 | M13: ='B1.5'!M13/'B1.5'!M17*100 -> 172.0892671 | N13: ='B1.5'!N13/'B1.5'!N17*100 -> 179.3526012 | O13: ='B1.5'!O13/'B1.5'!O17*100 -> 166.4862186 | P13: ='B1.5'!P13/'B1.5'!P17*100 -> 178.7819086 | Q13: ='B1.5'!Q13/'B1.5'!Q17*100 -> 164.1926398 | R13: ='B1.5'!R13/'B1.5'!R17*100 -> 164.6075047 | S13: ='B1.5'!S13/'B1.5'!S17*100 -> 157.9292554 | T13: ='B1.5'!T13/'B1.5'!T17*100 -> 156.4612365 | U13: ='B1.5'!U13/'B1.5'!U17*100 -> 161.3538627 | V13: ='B1.5'!V13/'B1.5'!V17*100 -> 166.2188576 | W13: ='B1.5'!W13/'B1.5'!W17*100 -> 161.1188657 | X13: ='B1.5'!X13/'B1.5'!X17*100 -> 176.095659 | Y13: ='B1.5'!Y13/'B1.5'!Y17*100 -> 210.351377 | Z13: ='B1.5'!Z13/'B1.5'!Z17*100 -> 228.9171115
D14: Komentáře: | Z14: Zdroj: Státní závěrečný účet ČR; ZÚ - kapitola 333-MŠMT; 700-Obce a DSO, KÚ; ZÚ ostatních resortů; ČSÚ; monitor.statnipokladna.cz
D15: 1) | E15: Z důvodu konsolidace nejsou zahrnuty z daných tříd následující položky: 5321, 5323,5329, 5344, 5345, 5349, 5366, 5641, 5642, 5649, 6341, 6342, 6349, 6441, 6442, 6449.
D16: 2) | E16: Meziroční snížení výdajů v roce 2008 je dáno aplikací zákona č. 26/2008 Sb. a z něj vyplývajícím nepřeváděním nevyčerpaných prostředků OSS do rezervních fondů, a tudíž jejich nezahrnutím do čerpání.

Sheet B1.8
D4: Tab. B1.8: | H4: Školství celkem – veřejné výdaje v běžných cenách
D5: v letech 2009 až 2019 – podle druhu/typu školy/zařízení
D6: Včetně výdajů Ministerstva obrany. | Z6: v tis. Kč
D7: Druh/typ školy/zařízení | J7: 2003 | K7: 2004 | L7: 2005 | M7: 2006 | N7: 2007 | O7: 2008 | P7: 2009 | Q7: 2010 | R7: 2011 | S7: 2012 | T7: 2013 | U7: 2014 | V7: 2015 | W7: 2016 | X7: 2017 | Y7: 2018 | Z7: 2019
J11: 1) | K11: 1) | L11: 1) | M11: 1) | N11: 1) | O11: 1),4)
E12: Výdaje na vzdělávání a školské služby celkem | J12: 115856594.4 | K12: 123041633.5 | L12: 130319162.7 | M12: 142834091.7 | N12: =N13+N15+N17+N18+N22+N23+N24+N25+N28 -> 152987768.8 | O12: =O13+O15+O17+O18+O22+O23+O24+O25+O28 -> 151002990.3 | P12: =P13+P15+P17+P18+P22+P23+P24+P25+P28 -> 163943010.2 | Q12: =Q13+Q15+Q17+Q18+Q22+Q23+Q24+Q25+Q28 -> 162965058.5 | R12: 173721968.9 | S12: 171369869.8 | T12: 172805174.3 | U12: 178712679.5 | V12: 182848145.5 | W12: 173448471.5 | X12: 194823065 | Y12: 221502580.8 | Z12: 247894493.7
E13: Předškolní vzdělávání 3) | J13: 9764375.15 | K13: 10290055.28 | L13: 11034349.75 | M13: 11974973.94 | N13: 12677778.41 | O13: 14094485.24 | P13: 15983396.37 | Q13: 16283334.95 | R13: 16279366.76 | S13: 16933537.22 | T13: 17846305 | U13: 19317698.83 | V13: 19325226.8 | W13: 18811578.89 | X13: 21529333.77 | Y13: 24852333.31 | Z13: 28128245.56
F14: z toho mateřské školy2), 4) | J14: 9396746.48 | K14: 9911525.23 | L14: 10617936.95 | M14: 11575064.41 | N14: 12315411.04 | O14: 13720094.94 | P14: 15620518.33 | Q14: 15899430.73 | R14: 15927107.19 | S14: 16565923.96 | T14: 17722819.15 | U14: 18957182.01 | V14: 18958940.48 | W14: 18408452.54 | X14: 21098949.54 | Y14: 24286306.69 | Z14: 27474076.22
E15: Základní vzdělávání 5) | J15: 42717454.27 | K15: 44870661.25 | L15: 43975300.42 | M15: 48148901.27 | N15: 47866403.85 | O15: 49543007.55 | P15: 54104041.25 | Q15: 52340323.99 | R15: 54543444.07 | S15: 52983370.47 | T15: 54562370.72 | U15: 58180003.54 | V15: 60849168.64 | W15: 61099942.15 | X15: 71149358.8 | Y15: 83506022.98 | Z15: 100713170.4
F16: z toho ZŠ, včetně školních družin a klubů2), 6) | J16: 39042825.98 | K16: 40856021.5 | L16: 39818749.3 | M16: 43896391.9 | N16: 43518717.95 | O16: 45144154.04 | P16: 49409358.07 | Q16: 47794252.9 | R16: 49807522 | S16: 48479438.38 | T16: 50299911.56 | U16: 53971877.35 | V16: 56462551.04 | W16: 56563241.52 | X16: 66089711.82 | Y16: 77067773.33 | Z16: 93309242.3
E17: Základní umělecké školy 7) | J17: 2479893.51 | K17: 2784099.86 | L17: 3037719.11 | M17: 3146091.69 | N17: 3351332.88 | O17: 3544350.19 | P17: 3803588.84 | Q17: 3854152 | R17: 3813943.66 | S17: 3961828.07 | T17: 4009080.74 | U17: 4133072.302 | V17: 4273547.486 | W17: 4547369.164 | X17: 4975747.524 | Y17: 5753333.755 | Z17: 6692676.219
E18: Střední vzdělávání, konzervatoře, VOŠ 8) | J18: 26536727.46 | K18: 27977689.63 | L18: 29350786.43 | M18: 31495535.58 | N18: 32395028.81 | O18: 33691678.21 | P18: 35585852.08 | Q18: 34486494.61 | R18: 33965622.61 | S18: 33339103.04 | T18: 32118289.18 | U18: 32558243.43 | V18: 34001218.75 | W18: 32756424.62 | X18: 35530602.75 | Y18: 43179044.15 | Z18: 47864922.24
E19: z toho | F19: gymnázia, včetně sportovních škol2), 9) | J19: 5319711.19 | K19: 5732578.88 | L19: 6115290.15 | M19: 6764190.87 | N19: 7134367.23 | O19: 7552198.31 | P19: 7789675.51 | Q19: 7512373.45 | R19: 7556382.93 | S19: 7539864.812 | T19: 7601572.532 | U19: 7725997.551 | V19: 7970890.806 | W19: 7613196.697 | X19: 8419898.546 | Y19: 10001144 | Z19: 11003070.73
F20: střední odborné školy, konzervatoře, VOŠ2), 10) | J20: 9858050.59 | K20: 10410309.74 | L20: 11065998.39 | M20: 12102644.16 | N20: 12448549.13 | O20: 13037756.29 | P20: 14439441.81 | Q20: 14177464.48 | R20: 14041649.21 | S20: 13815291.81 | T20: 13535294.88 | U20: 13821980.47 | V20: 13337240.87 | W20: 16168391.09 | X20: 17591923.62 | Y20: 23728268.69 | Z20: 26042877.1
F21: střední odborná učiliště, učiliště, SPV2), 11) | J21: 10065773.76 | K21: 10450543.1 | L21: 10762925.72 | M21: 11155023.61 | N21: 11500741.04 | O21: 11906128.21 | P21: 12188267.9 | Q21: 11630046.47 | R21: 11204133.86 | S21: 10796654.37 | T21: 9813856.408 | U21: 9827390.412 | V21: 11462069.52 | W21: 7658770.561 | X21: 8102214.331 | Y21: 9449088.055 | Z21: 10818317.86
E22: Stravování žáků MŠ, ZŠ, SŠ a VOŠ 12) | J22: 2064213.5 | K22: 2068146.91 | L22: 3419642.22 | M22: 3409338.06 | N22: 3446532.36 | O22: 3616107.27 | P22: 3818991.29 | Q22: 3699090.36 | R22: 3275541.53 | S22: 3080050.11 | T22: 3122269.544 | U22: 3210901.038 | V22: 3307233.17 | W22: 3474012.853 | X22: 3760763.817 | Y22: 4326326.325 | Z22: 4888177.944
E23: Školská zařízení pro výkon ústavní a ochranné výchovy 13) | J23: 3276243.83 | K23: 3828699.6 | L23: 4055161.19 | M23: 4202069.85 | N23: 4074589.27 | O23: 4159850.97 | P23: 4571945.19 | Q23: 4325751.41 | R23: 4186564.867 | S23: 3144385.794 | T23: 3858645.225 | U23: 3761261.411 | V23: 3750448.745 | W23: 3991496.887 | X23: 4038745.278 | Y23: 3571116.362 | Z23: 4057867.532
E24: Vysoké školy (včetně kolejí a menz) 14) | J24: 20506297.73 | K24: 22845451.67 | L24: 26442456.14 | M24: 29009170.82 | N24: 34603898 | O24: 31244213.24 | P24: 33710308.08 | Q24: 32308880.27 | R24: 34224959.13 | S24: 34258639.94 | T24: 34229370.45 | U24: 32761441.15 | V24: 33650832.39 | W24: 31871162.35 | X24: 33715196.56 | Y24: 47619459.1 | Z24: 46505649.33
E25: Státní správa 15) | J25: 642520.16 | K25: 704200.09 | L25: 662073.87 | M25: 709202.77 | N25: 806524.9 | O25: 826054.82 | P25: 750392.86 | Q25: 762392.18 | R25: 812887.4119 | S25: 784411.7533 | T25: 725931.9588 | U25: 758265.9568 | V25: 778852.6756 | W25: 757418.6563 | X25: 871545.2635 | Y25: 901799.8432 | Z25: 985496.9072
E26: v tom | F26: MŠMT | J26: 292954.29 | K26: 395291.55 | L26: 328208.63 | M26: 365480.53 | N26: 402691.72 | O26: 460872.21 | P26: 397530.13 | Q26: 386368.25 | R26: 387764.7997 | S26: 349951.8021 | T26: 348224.1577 | U26: 361953.8612 | V26: 371121.4966 | W26: 417361.8917 | X26: 471826.3283 | Y26: 492686.8015 | Z26: 535382.5145
F27: Ostatní státní správa | J27: 338882.7 | K27: 308908.54 | L27: 333865.24 | M27: 343722.24 | N27: 403833.18 | O27: 365182.61 | P27: 352862.73 | Q27: 376023.93 | R27: 425122.6121 | S27: 434459.9512 | T27: 377707.8011 | U27: 396312.0956 | V27: 407731.179 | W27: 340056.7646 | X27: 399718.9352 | Y27: 409113.0417 | Z27: 450114.3927
E28: Ostatní výdaje 16) | J28: 7868868.82 | K28: 7672629.16 | L28: 8341673.56 | M28: 10738842.7 | N28: 13765680.34 | O28: 10283242.8 | P28: 11614494.22 | Q28: 14904638.68 | R28: 22619638.86 | S28: 22884543.36 | T28: 22332911.44 | U28: 24031791.81 | V28: 22911616.83 | W28: 16139065.96 | X28: 19251771.27 | Y28: 7793145 | Z28: 8058287.597
D29: Komentáře: | Z29: Zdroj: Státní závěrečný účet ČR; ZÚ – kapitola 333-MŠMT; 700-Obce a DSO, KÚ; ZÚ ostatních resortů; ČSÚ; monitor.statnipokladna.cz
D30: 1) | E30: Z důvodu konsolidace nejsou zahrnuty z daných tříd následující položky: 5321, 5323,5329, 5344, 5345, 5349, 5366, 5641, 5642, 5649, 6341, 6342, 6349, 6441, 6442, 6449.
D31: 2) | E31: Bez škol pro děti/žáky/studenty se SVP.
D32: 3) | E32: Paragraf (kód): 3111, 3112, 3115
D33: 4) | E33: Paragraf (kód): 3111
D34: 5) | E34: Paragraf (kód): 3113, 3114, 3117, 3118, 3119, 3143
D35: 6) | E35: Paragraf (kód): 3113, 3117, 3118, 3143
D36: 7) | E36: Paragraf (kód): 3231
D37: 8) | E37: Paragraf (kód): 3212x, 3150
D38: 9) | E38: Paragraf (kód): 3121, 3128
D39: 10) | E39: Paragraf (kód): 3122, 3124, 3126, 3127, 3150
D40: 11) | E40: Paragraf (kód): 3123, 3125
D41: 12) | E41: Paragraf (kód): 3141, 3142
D42: 4) | E42: Meziroční snížení výdajů v roce 2008 je dáno aplikací zákona č. 26/2008 Sb. a z něj vyplývajícím nepřeváděním nevyčerpaných prostředků OSS do rezervních fondů, a tudíž jejich nezahrnutím do čerpání.
D43: 13) | E43: Paragraf (kód): 313x
D44: 14) | E44: Paragraf (kód): 321x, 322x
D45: 15) | E45: Paragraf (kód): 326x
D46: 16) | E46: Paragraf (kód): 3144, 3145, 3146, 3147, 3148, 3149, 3232, 3233, 3239, 3280, 329x

Sheet B1.9
D4: Tab. B1.9: | H4: Školství celkem – veřejné výdaje ve stálých cenách roku 2015
D5: v letech 2009 až 2019 – podle druhu/typu školy/zařízení
D6: Včetně výdajů Ministerstva obrany. | Z6: v tis. Kč
D7: Druh/typ školy/zařízení | J7: 2003 | K7: 2004 | L7: 2005 | M7: 2006 | N7: 2007 | O7: 2008 | P7: 2009 | Q7: 2010 | R7: 2011 | S7: 2012 | T7: 2013 | U7: 2014 | V7: 2015 | W7: 2016 | X7: 2017 | Y7: 2018 | Z7: 2019
J11: 1) | K11: 1) | L11: 1) | M11: 1) | N11: 1) | O11: 1),4)
E12: Výdaje na vzdělávání a školské služby celkem | J12: ='B1.8'!J12/'B1.5'!J$17*100 -> 121315805.7 | K12: ='B1.8'!K12/'B1.5'!K$17*100 -> 125424702.8 | L12: ='B1.8'!L12/'B1.5'!L$17*100 -> 130319162.7 | M12: ='B1.8'!M12/'B1.5'!M$17*100 -> 172089267.1 | N12: ='B1.8'!N12/'B1.5'!N$17*100 -> 179352601.2 | O12: ='B1.8'!O12/'B1.5'!O$17*100 -> 166486207.6 | P12: ='B1.8'!P12/'B1.5'!P$17*100 -> 178781908.6 | Q12: ='B1.8'!Q12/'B1.5'!Q$17*100 -> 175231245.6 | R12: ='B1.8'!R12/'B1.5'!R$17*100 -> 183251022.1 | S12: ='B1.8'!S12/'B1.5'!S$17*100 -> 175045832.2 | T12: ='B1.8'!T12/'B1.5'!T$17*100 -> 174023337.6 | U12: ='B1.8'!U12/'B1.5'!U$17*100 -> 179250430.8 | V12: ='B1.8'!V12/'B1.5'!V$17*100 -> 182848145.5 | W12: ='B1.8'!W12/'B1.5'!W$17*100 -> 172242772.1 | X12: ='B1.8'!X12/'B1.5'!X$17*100 -> 188965145.5 | Y12: ='B1.8'!Y12/'B1.5'!Y$17*100 -> 210353827.9 | Z12: ='B1.8'!Z12/'B1.5'!Z$17*100 -> 228896116.1
E13: Předškolní vzdělávání 3) | J13: ='B1.8'!J13/'B1.5'!J$17*100 -> 10224476.6 | K13: ='B1.8'!K13/'B1.5'!K$17*100 -> 10489352.99 | L13: ='B1.8'!L13/'B1.5'!L$17*100 -> 11034349.75 | M13: ='B1.8'!M13/'B1.5'!M$17*100 -> 14427679.45 | N13: ='B1.8'!N13/'B1.5'!N$17*100 -> 14862577.27 | O13: ='B1.8'!O13/'B1.5'!O$17*100 -> 15539675.02 | P13: ='B1.8'!P13/'B1.5'!P$17*100 -> 17430094.19 | Q13: ='B1.8'!Q13/'B1.5'!Q$17*100 -> 17508962.31 | R13: ='B1.8'!R13/'B1.5'!R$17*100 -> 17172327.81 | S13: ='B1.8'!S13/'B1.5'!S$17*100 -> 17296769.38 | T13: ='B1.8'!T13/'B1.5'!T$17*100 -> 17972109.77 | U13: ='B1.8'!U13/'B1.5'!U$17*100 -> 19375826.31 | V13: ='B1.8'!V13/'B1.5'!V$17*100 -> 19325226.8 | W13: ='B1.8'!W13/'B1.5'!W$17*100 -> 18680813.2 | X13: ='B1.8'!X13/'B1.5'!X$17*100 -> 20881992.02 | Y13: ='B1.8'!Y13/'B1.5'!Y$17*100 -> 23601456.14 | Z13: ='B1.8'!Z13/'B1.5'!Z$17*100 -> 25972525.91
F14: z toho mateřské školy2), 4) | J14: ='B1.8'!J14/'B1.5'!J$17*100 -> 9839525.11 | K14: ='B1.8'!K14/'B1.5'!K$17*100 -> 10103491.57 | L14: ='B1.8'!L14/'B1.5'!L$17*100 -> 10617936.95 | M14: ='B1.8'!M14/'B1.5'!M$17*100 -> 13945860.73 | N14: ='B1.8'!N14/'B1.5'!N$17*100 -> 14437762.06 | O14: ='B1.8'!O14/'B1.5'!O$17*100 -> 15126896.3 | P14: ='B1.8'!P14/'B1.5'!P$17*100 -> 17034371.13 | Q14: ='B1.8'!Q14/'B1.5'!Q$17*100 -> 17096162.08 | R14: ='B1.8'!R14/'B1.5'!R$17*100 -> 16800745.98 | S14: ='B1.8'!S14/'B1.5'!S$17*100 -> 16921270.64 | T14: ='B1.8'!T14/'B1.5'!T$17*100 -> 17847753.43 | U14: ='B1.8'!U14/'B1.5'!U$17*100 -> 19014224.69 | V14: ='B1.8'!V14/'B1.5'!V$17*100 -> 18958940.48 | W14: ='B1.8'!W14/'B1.5'!W$17*100 -> 18280489.11 | X14: ='B1.8'!X14/'B1.5'!X$17*100 -> 20464548.54 | Y14: ='B1.8'!Y14/'B1.5'!Y$17*100 -> 23063918.99 | Z14: ='B1.8'!Z14/'B1.5'!Z$17*100 -> 25368491.43
E15: Základní vzdělávání 5) | J15: ='B1.8'!J15/'B1.5'!J$17*100 -> 44730318.61 | K15: ='B1.8'!K15/'B1.5'!K$17*100 -> 45739715.85 | L15: ='B1.8'!L15/'B1.5'!L$17*100 -> 43975300.42 | M15: ='B1.8'!M15/'B1.5'!M$17*100 -> 58010724.42 | N15: ='B1.8'!N15/'B1.5'!N$17*100 -> 56115362.08 | O15: ='B1.8'!O15/'B1.5'!O$17*100 -> 54622941.07 | P15: ='B1.8'!P15/'B1.5'!P$17*100 -> 59001135.5 | Q15: ='B1.8'!Q15/'B1.5'!Q$17*100 -> 56279918.27 | R15: ='B1.8'!R15/'B1.5'!R$17*100 -> 57535278.56 | S15: ='B1.8'!S15/'B1.5'!S$17*100 -> 54119888.12 | T15: ='B1.8'!T15/'B1.5'!T$17*100 -> 54946999.72 | U15: ='B1.8'!U15/'B1.5'!U$17*100 -> 58355068.74 | V15: ='B1.8'!V15/'B1.5'!V$17*100 -> 60849168.64 | W15: ='B1.8'!W15/'B1.5'!W$17*100 -> 60675215.64 | X15: ='B1.8'!X15/'B1.5'!X$17*100 -> 69010047.34 | Y15: ='B1.8'!Y15/'B1.5'!Y$17*100 -> 79302965.79 | Z15: ='B1.8'!Z15/'B1.5'!Z$17*100 -> 92994617.16
F16: z toho ZŠ, včetně školních družin a klubů2), 6) | J16: ='B1.8'!J16/'B1.5'!J$17*100 -> 40882540.29 | K16: ='B1.8'!K16/'B1.5'!K$17*100 -> 41647320.59 | L16: ='B1.8'!L16/'B1.5'!L$17*100 -> 39818749.3 | M16: ='B1.8'!M16/'B1.5'!M$17*100 -> 52887219.16 | N16: ='B1.8'!N16/'B1.5'!N$17*100 -> 51018426.67 | O16: ='B1.8'!O16/'B1.5'!O$17*100 -> 49773047.45 | P16: ='B1.8'!P16/'B1.5'!P$17*100 -> 53881524.61 | Q16: ='B1.8'!Q16/'B1.5'!Q$17*100 -> 51391669.78 | R16: ='B1.8'!R16/'B1.5'!R$17*100 -> 52539580.17 | S16: ='B1.8'!S16/'B1.5'!S$17*100 -> 49519344.62 | T16: ='B1.8'!T16/'B1.5'!T$17*100 -> 50654493.01 | U16: ='B1.8'!U16/'B1.5'!U$17*100 -> 54134280.19 | V16: ='B1.8'!V16/'B1.5'!V$17*100 -> 56462551.04 | W16: ='B1.8'!W16/'B1.5'!W$17*100 -> 56170051.17 | X16: ='B1.8'!X16/'B1.5'!X$17*100 -> 64102533.29 | Y16: ='B1.8'!Y16/'B1.5'!Y$17*100 -> 73188768.6 | Z16: ='B1.8'!Z16/'B1.5'!Z$17*100 -> 86158118.47
E17: Základní umělecké školy 7) | J17: ='B1.8'!J17/'B1.5'!J$17*100 -> 2596747.131 | K17: ='B1.8'!K17/'B1.5'!K$17*100 -> 2838022.283 | L17: ='B1.8'!L17/'B1.5'!L$17*100 -> 3037719.11 | M17: ='B1.8'!M17/'B1.5'!M$17*100 -> 3790471.916 | N17: ='B1.8'!N17/'B1.5'!N$17*100 -> 3928877.937 | O17: ='B1.8'!O17/'B1.5'!O$17*100 -> 3907773.087 | P17: ='B1.8'!P17/'B1.5'!P$17*100 -> 4147861.33 | Q17: ='B1.8'!Q17/'B1.5'!Q$17*100 -> 4144249.462 | R17: ='B1.8'!R17/'B1.5'!R$17*100 -> 4023147.321 | S17: ='B1.8'!S17/'B1.5'!S$17*100 -> 4046811.103 | T17: ='B1.8'!T17/'B1.5'!T$17*100 -> 4037342.135 | U17: ='B1.8'!U17/'B1.5'!U$17*100 -> 4145508.828 | V17: ='B1.8'!V17/'B1.5'!V$17*100 -> 4273547.486 | W17: ='B1.8'!W17/'B1.5'!W$17*100 -> 4515758.852 | X17: ='B1.8'!X17/'B1.5'!X$17*100 -> 4826137.269 | Y17: ='B1.8'!Y17/'B1.5'!Y$17*100 -> 5463754.753 | Z17: ='B1.8'!Z17/'B1.5'!Z$17*100 -> 6179756.435
E18: Střední vzdělávání, konzervatoře, VOŠ 8) | J18: ='B1.8'!J18/'B1.5'!J$17*100 -> 27787149.17 | K18: ='B1.8'!K18/'B1.5'!K$17*100 -> 28519561.29 | L18: ='B1.8'!L18/'B1.5'!L$17*100 -> 29350786.43 | M18: ='B1.8'!M18/'B1.5'!M$17*100 -> 37946428.41 | N18: ='B1.8'!N18/'B1.5'!N$17*100 -> 37977759.45 | O18: ='B1.8'!O18/'B1.5'!O$17*100 -> 37146282.48 | P18: ='B1.8'!P18/'B1.5'!P$17*100 -> 38806817.97 | Q18: ='B1.8'!Q18/'B1.5'!Q$17*100 -> 37082252.27 | R18: ='B1.8'!R18/'B1.5'!R$17*100 -> 35828715.84 | S18: ='B1.8'!S18/'B1.5'!S$17*100 -> 34054242.13 | T18: ='B1.8'!T18/'B1.5'!T$17*100 -> 32344702.1 | U18: ='B1.8'!U18/'B1.5'!U$17*100 -> 32656212.07 | V18: ='B1.8'!V18/'B1.5'!V$17*100 -> 34001218.75 | W18: ='B1.8'!W18/'B1.5'!W$17*100 -> 32528723.56 | X18: ='B1.8'!X18/'B1.5'!X$17*100 -> 34462272.31 | Y18: ='B1.8'!Y18/'B1.5'!Y$17*100 -> 41005739.94 | Z18: ='B1.8'!Z18/'B1.5'!Z$17*100 -> 44196604.1
E19: z toho | F19: gymnázia, včetně sportovních škol2), 9) | J19: ='B1.8'!J19/'B1.5'!J$17*100 -> 5570378.209 | K19: ='B1.8'!K19/'B1.5'!K$17*100 -> 5843607.421 | L19: ='B1.8'!L19/'B1.5'!L$17*100 -> 6115290.15 | M19: ='B1.8'!M19/'B1.5'!M$17*100 -> 8149627.554 | N19: ='B1.8'!N19/'B1.5'!N$17*100 -> 8363853.728 | O19: ='B1.8'!O19/'B1.5'!O$17*100 -> 8326569.25 | P19: ='B1.8'!P19/'B1.5'!P$17*100 -> 8494738.833 | Q19: ='B1.8'!Q19/'B1.5'!Q$17*100 -> 8077820.914 | R19: ='B1.8'!R19/'B1.5'!R$17*100 -> 7970868.069 | S19: ='B1.8'!S19/'B1.5'!S$17*100 -> 7701598.378 | T19: ='B1.8'!T19/'B1.5'!T$17*100 -> 7655158.642 | U19: ='B1.8'!U19/'B1.5'!U$17*100 -> 7749245.287 | V19: ='B1.8'!V19/'B1.5'!V$17*100 -> 7970890.806 | W19: ='B1.8'!W19/'B1.5'!W$17*100 -> 7560274.773 | X19: ='B1.8'!X19/'B1.5'!X$17*100 -> 8166729.919 | Y19: ='B1.8'!Y19/'B1.5'!Y$17*100 -> 9497762.579 | Z19: ='B1.8'!Z19/'B1.5'!Z$17*100 -> 10159806.77
F20: střední odborné školy, konzervatoře, VOŠ2), 10) | J20: ='B1.8'!J20/'B1.5'!J$17*100 -> 10322566.06 | K20: ='B1.8'!K20/'B1.5'!K$17*100 -> 10611936.53 | L20: ='B1.8'!L20/'B1.5'!L$17*100 -> 11065998.39 | M20: ='B1.8'!M20/'B1.5'!M$17*100 -> 14581498.99 | N20: ='B1.8'!N20/'B1.5'!N$17*100 -> 14593844.23 | O20: ='B1.8'!O20/'B1.5'!O$17*100 -> 14374593.48 | P20: ='B1.8'!P20/'B1.5'!P$17*100 -> 15746392.38 | Q20: ='B1.8'!Q20/'B1.5'!Q$17*100 -> 15244585.46 | R20: ='B1.8'!R20/'B1.5'!R$17*100 -> 14811866.25 | S20: ='B1.8'!S20/'B1.5'!S$17*100 -> 14111636.17 | T20: ='B1.8'!T20/'B1.5'!T$17*100 -> 13630709.84 | U20: ='B1.8'!U20/'B1.5'!U$17*100 -> 13863571.18 | V20: ='B1.8'!V20/'B1.5'!V$17*100 -> 13337240.87 | W20: ='B1.8'!W20/'B1.5'!W$17*100 -> 16055999.09 | X20: ='B1.8'!X20/'B1.5'!X$17*100 -> 17062971.5 | Y20: ='B1.8'!Y20/'B1.5'!Y$17*100 -> 22533968.37 | Z20: ='B1.8'!Z20/'B1.5'!Z$17*100 -> 24046977.93
F21: střední odborná učiliště, učiliště, SPV2), 11) | J21: ='B1.8'!J21/'B1.5'!J$17*100 -> 10540077.24 | K21: ='B1.8'!K21/'B1.5'!K$17*100 -> 10652949.13 | L21: ='B1.8'!L21/'B1.5'!L$17*100 -> 10762925.72 | M21: ='B1.8'!M21/'B1.5'!M$17*100 -> 13439787.48 | N21: ='B1.8'!N21/'B1.5'!N$17*100 -> 13482697.58 | O21: ='B1.8'!O21/'B1.5'!O$17*100 -> 13126932.98 | P21: ='B1.8'!P21/'B1.5'!P$17*100 -> 13291459 | Q21: ='B1.8'!Q21/'B1.5'!Q$17*100 -> 12505426.31 | R21: ='B1.8'!R21/'B1.5'!R$17*100 -> 11818706.6 | S21: ='B1.8'!S21/'B1.5'!S$17*100 -> 11028247.56 | T21: ='B1.8'!T21/'B1.5'!T$17*100 -> 9883037.671 | U21: ='B1.8'!U21/'B1.5'!U$17*100 -> 9856961.296 | V21: ='B1.8'!V21/'B1.5'!V$17*100 -> 11462069.52 | W21: ='B1.8'!W21/'B1.5'!W$17*100 -> 7605531.839 | X21: ='B1.8'!X21/'B1.5'!X$17*100 -> 7858597.799 | Y21: ='B1.8'!Y21/'B1.5'!Y$17*100 -> 8973492.93 | Z21: ='B1.8'!Z21/'B1.5'!Z$17*100 -> 9989213.169
E22: Stravování žáků MŠ, ZŠ, SŠ a VOŠ 12) | J22: ='B1.8'!J22/'B1.5'!J$17*100 -> 2161480.105 | K22: ='B1.8'!K22/'B1.5'!K$17*100 -> 2108202.762 | L22: ='B1.8'!L22/'B1.5'!L$17*100 -> 3419642.22 | M22: ='B1.8'!M22/'B1.5'!M$17*100 -> 4107636.217 | N22: ='B1.8'!N22/'B1.5'!N$17*100 -> 4040483.423 | O22: ='B1.8'!O22/'B1.5'!O$17*100 -> 3986887.839 | P22: ='B1.8'!P22/'B1.5'!P$17*100 -> 4164657.895 | Q22: ='B1.8'!Q22/'B1.5'!Q$17*100 -> 3977516.516 | R22: ='B1.8'!R22/'B1.5'!R$17*100 -> 3455212.584 | S22: ='B1.8'!S22/'B1.5'!S$17*100 -> 3146118.601 | T22: ='B1.8'!T22/'B1.5'!T$17*100 -> 3144279.501 | U22: ='B1.8'!U22/'B1.5'!U$17*100 -> 3220562.726 | V22: ='B1.8'!V22/'B1.5'!V$17*100 -> 3307233.17 | W22: ='B1.8'!W22/'B1.5'!W$17*100 -> 3449863.806 | X22: ='B1.8'!X22/'B1.5'!X$17*100 -> 3647685.564 | Y22: ='B1.8'!Y22/'B1.5'!Y$17*100 -> 4108572.009 | Z22: ='B1.8'!Z22/'B1.5'!Z$17*100 -> 4513553.042
E23: Školská zařízení pro výkon ústavní a ochranné výchovy 13) | J23: ='B1.8'!J23/'B1.5'!J$17*100 -> 3430621.812 | K23: ='B1.8'!K23/'B1.5'!K$17*100 -> 3902853.823 | L23: ='B1.8'!L23/'B1.5'!L$17*100 -> 4055161.19 | M23: ='B1.8'!M23/'B1.5'!M$17*100 -> 5062734.759 | N23: ='B1.8'!N23/'B1.5'!N$17*100 -> 4776775.229 | O23: ='B1.8'!O23/'B1.5'!O$17*100 -> 4586384.752 | P23: ='B1.8'!P23/'B1.5'!P$17*100 -> 4985763.566 | Q23: ='B1.8'!Q23/'B1.5'!Q$17*100 -> 4651345.602 | R23: ='B1.8'!R23/'B1.5'!R$17*100 -> 4416207.665 | S23: ='B1.8'!S23/'B1.5'!S$17*100 -> 3211834.315 | T23: ='B1.8'!T23/'B1.5'!T$17*100 -> 3885846.148 | U23: ='B1.8'!U23/'B1.5'!U$17*100 -> 3772579.148 | V23: ='B1.8'!V23/'B1.5'!V$17*100 -> 3750448.745 | W23: ='B1.8'!W23/'B1.5'!W$17*100 -> 3963750.633 | X23: ='B1.8'!X23/'B1.5'!X$17*100 -> 3917308.708 | Y23: ='B1.8'!Y23/'B1.5'!Y$17*100 -> 3391373.563 | Z23: ='B1.8'!Z23/'B1.5'!Z$17*100 -> 3746876.761
E24: Vysoké školy (včetně kolejí a menz) 14) | J24: ='B1.8'!J24/'B1.5'!J$17*100 -> 21472563.07 | K24: ='B1.8'!K24/'B1.5'!K$17*100 -> 23287922.19 | L24: ='B1.8'!L24/'B1.5'!L$17*100 -> 26442456.14 | M24: ='B1.8'!M24/'B1.5'!M$17*100 -> 34950808.22 | N24: ='B1.8'!N24/'B1.5'!N$17*100 -> 40567289.57 | O24: ='B1.8'!O24/'B1.5'!O$17*100 -> 34447864.65 | P24: ='B1.8'!P24/'B1.5'!P$17*100 -> 36761513.72 | Q24: ='B1.8'!Q24/'B1.5'!Q$17*100 -> 34740731.47 | R24: ='B1.8'!R24/'B1.5'!R$17*100 -> 36102277.56 | S24: ='B1.8'!S24/'B1.5'!S$17*100 -> 34993503.51 | T24: ='B1.8'!T24/'B1.5'!T$17*100 -> 34470665.11 | U24: ='B1.8'!U24/'B1.5'!U$17*100 -> 32860021.21 | V24: ='B1.8'!V24/'B1.5'!V$17*100 -> 33650832.39 | W24: ='B1.8'!W24/'B1.5'!W$17*100 -> 31649615.05 | X24: ='B1.8'!X24/'B1.5'!X$17*100 -> 32701451.56 | Y24: ='B1.8'!Y24/'B1.5'!Y$17*100 -> 45222658.21 | Z24: ='B1.8'!Z24/'B1.5'!Z$17*100 -> 42941504.46
E25: Státní správa 15) | J25: ='B1.8'!J25/'B1.5'!J$17*100 -> 672795.9791 | K25: ='B1.8'!K25/'B1.5'!K$17*100 -> 717839.0316 | L25: ='B1.8'!L25/'B1.5'!L$17*100 -> 662073.87 | M25: ='B1.8'!M25/'B1.5'!M$17*100 -> 854461.1687 | N25: ='B1.8'!N25/'B1.5'!N$17*100 -> 945515.7093 | O25: ='B1.8'!O25/'B1.5'!O$17*100 -> 910755.0386 | P25: ='B1.8'!P25/'B1.5'!P$17*100 -> 818312.8244 | Q25: ='B1.8'!Q25/'B1.5'!Q$17*100 -> 819776.5376 | R25: ='B1.8'!R25/'B1.5'!R$17*100 -> 857476.1729 | S25: ='B1.8'!S25/'B1.5'!S$17*100 -> 801237.746 | T25: ='B1.8'!T25/'B1.5'!T$17*100 -> 731049.3039 | U25: ='B1.8'!U25/'B1.5'!U$17*100 -> 760547.5996 | V25: ='B1.8'!V25/'B1.5'!V$17*100 -> 778852.6756 | W25: ='B1.8'!W25/'B1.5'!W$17*100 -> 752153.5812 | X25: ='B1.8'!X25/'B1.5'!X$17*100 -> 845339.7319 | Y25: ='B1.8'!Y25/'B1.5'!Y$17*100 -> 856410.1075 | Z25: ='B1.8'!Z25/'B1.5'!Z$17*100 -> 909969.4434
E26: v tom | F26: MŠMT | J26: ='B1.8'!J26/'B1.5'!J$17*100 -> 306758.4188 | K26: ='B1.8'!K26/'B1.5'!K$17*100 -> 402947.5535 | L26: ='B1.8'!L26/'B1.5'!L$17*100 -> 328208.63 | M26: ='B1.8'!M26/'B1.5'!M$17*100 -> 440337.988 | N26: ='B1.8'!N26/'B1.5'!N$17*100 -> 472088.7691 | O26: ='B1.8'!O26/'B1.5'!O$17*100 -> 508128.1257 | P26: ='B1.8'!P26/'B1.5'!P$17*100 -> 433511.5921 | Q26: ='B1.8'!Q26/'B1.5'!Q$17*100 -> 415449.7312 | R26: ='B1.8'!R26/'B1.5'!R$17*100 -> 409034.5989 | S26: ='B1.8'!S26/'B1.5'!S$17*100 -> 357458.4291 | T26: ='B1.8'!T26/'B1.5'!T$17*100 -> 350678.91 | U26: ='B1.8'!U26/'B1.5'!U$17*100 -> 363042.9902 | V26: ='B1.8'!V26/'B1.5'!V$17*100 -> 371121.4966 | W26: ='B1.8'!W26/'B1.5'!W$17*100 -> 414460.667 | X26: ='B1.8'!X26/'B1.5'!X$17*100 -> 457639.5037 | Y26: ='B1.8'!Y26/'B1.5'!Y$17*100 -> 467888.7004 | Z26: ='B1.8'!Z26/'B1.5'!Z$17*100 -> 494351.3523
F27: Ostatní státní správa | J27: ='B1.8'!J27/'B1.5'!J$17*100 -> 354850.9948 | K27: ='B1.8'!K27/'B1.5'!K$17*100 -> 314891.4781 | L27: ='B1.8'!L27/'B1.5'!L$17*100 -> 333865.24 | M27: ='B1.8'!M27/'B1.5'!M$17*100 -> 414123.1807 | N27: ='B1.8'!N27/'B1.5'!N$17*100 -> 473426.9402 | O27: ='B1.8'!O27/'B1.5'!O$17*100 -> 402626.9129 | P27: ='B1.8'!P27/'B1.5'!P$17*100 -> 384801.2323 | Q27: ='B1.8'!Q27/'B1.5'!Q$17*100 -> 404326.8065 | R27: ='B1.8'!R27/'B1.5'!R$17*100 -> 448441.574 | S27: ='B1.8'!S27/'B1.5'!S$17*100 -> 443779.3169 | T27: ='B1.8'!T27/'B1.5'!T$17*100 -> 380370.3939 | U27: ='B1.8'!U27/'B1.5'!U$17*100 -> 397504.6095 | V27: ='B1.8'!V27/'B1.5'!V$17*100 -> 407731.179 | W27: ='B1.8'!W27/'B1.5'!W$17*100 -> 337692.9142 | X27: ='B1.8'!X27/'B1.5'!X$17*100 -> 387700.2282 | Y27: ='B1.8'!Y27/'B1.5'!Y$17*100 -> 388521.4071 | Z27: ='B1.8'!Z27/'B1.5'!Z$17*100 -> 415618.0911
E28: Ostatní výdaje 16) | J28: ='B1.8'!J28/'B1.5'!J$17*100 -> 8239653.215 | K28: ='B1.8'!K28/'B1.5'!K$17*100 -> 7821232.579 | L28: ='B1.8'!L28/'B1.5'!L$17*100 -> 8341673.56 | M28: ='B1.8'!M28/'B1.5'!M$17*100 -> 12938364.7 | N28: ='B1.8'!N28/'B1.5'!N$17*100 -> 16137960.54 | O28: ='B1.8'!O28/'B1.5'!O$17*100 -> 11337643.66 | P28: ='B1.8'!P28/'B1.5'!P$17*100 -> 12665751.6 | Q28: ='B1.8'!Q28/'B1.5'!Q$17*100 -> 16026493.2 | R28: ='B1.8'!R28/'B1.5'!R$17*100 -> 23860378.55 | S28: ='B1.8'!S28/'B1.5'!S$17*100 -> 23375427.33 | T28: ='B1.8'!T28/'B1.5'!T$17*100 -> 22490343.84 | U28: ='B1.8'!U28/'B1.5'!U$17*100 -> 24104104.12 | V28: ='B1.8'!V28/'B1.5'!V$17*100 -> 22911616.83 | W28: ='B1.8'!W28/'B1.5'!W$17*100 -> 16026877.82 | X28: ='B1.8'!X28/'B1.5'!X$17*100 -> 18672911.02 | Y28: ='B1.8'!Y28/'B1.5'!Y$17*100 -> 7400897.436 | Z28: ='B1.8'!Z28/'B1.5'!Z$17*100 -> 7440708.77
D29: Komentáře: | Z29: Zdroj: Státní závěrečný účet ČR; ZÚ – kapitola 333-MŠMT; 700-Obce a DSO, KÚ; ZÚ ostatních resortů; ČSÚ; monitor.statnipokladna.cz
D30: 1) | E30: Z důvodu konsolidace nejsou zahrnuty z daných tříd následující položky: 5321, 5323,5329, 5344, 5345, 5349, 5366, 5641, 5642, 5649, 6341, 6342, 6349, 6441, 6442, 6449.
D31: 2) | E31: Bez škol pro děti/žáky/studenty se SVP.
D32: 3) | E32: Paragraf (kód): 3111, 3112, 3115
D33: 4) | E33: Paragraf (kód): 3111
D34: 5) | E34: Paragraf (kód): 3113, 3114, 3117, 3118, 3119, 3143
D35: 6) | E35: Paragraf (kód): 3113, 3117, 3118, 3143
D36: 7) | E36: Paragraf (kód): 3231
D37: 8) | E37: Paragraf (kód): 3212x, 3150
D38: 9) | E38: Paragraf (kód): 3121, 3128
D39: 10) | E39: Paragraf (kód): 3122, 3124, 3126, 3127, 3150
D40: 11) | E40: Paragraf (kód): 3123, 3125
D41: 12) | E41: Paragraf (kód): 3141, 3142
D42: 4) | E42: Meziroční snížení výdajů v roce 2008 je dáno aplikací zákona č. 26/2008 Sb. a z něj vyplývajícím nepřeváděním nevyčerpaných prostředků OSS do rezervních fondů, a tudíž jejich nezahrnutím do čerpání.
D43: 13) | E43: Paragraf (kód): 313x
D44: 14) | E44: Paragraf (kód): 321x, 322x
D45: 15) | E45: Paragraf (kód): 326x
D46: 16) | E46: Paragraf (kód): 3144, 3145, 3146, 3147, 3148, 3149, 3232, 3233, 3239, 3280, 329x

Sheet B1.10
D4: Tab. B1.10: | H4: Školství celkem – jednotkové výdaje na žáka/studenta v běžných cenách
D5: v letech 2009 až 2019 – podle druhu/typu školy/zařízení
D7: Druh/typ školy | J7: 2003 | K7: 2004 | L7: 2005 | M7: 2006 | N7: 2007 | O7: 2008 | P7: 2009 | Q7: 2010 | R7: 2011 | S7: 2012 | T7: 2013 | U7: 2014 | V7: 2015 | W7: 2016 | X7: 2017 | Y7: 2018 | Z7: 2019
E12: Předškolní vzdělávání | J12: 32597.42883 | K12: 33621.19329 | L12: 35730.90789 | M12: 38924.16435 | N12: 40491.76383 | O12: 41978.73317 | P12: 44122.81032 | Q12: 51541.84442 | R12: 49113.06656 | S12: 49077.14485 | T12: 50642.21906 | U12: 52787.56704 | V12: 52455.005 | W12: 51282.18401 | X12: 59172.52639 | Y12: 68222.10037 | Z12: 77018.4601
F13: z toho mateřské školy1) | J13: 32057.83331 | K13: 33014.29661 | L13: 35183.39896 | M13: 38271.58867 | N13: 39946.1327 | O13: 41518.59807 | P13: 43651.19973 | Q13: 51099.21256 | R13: 48755.15593 | S13: 48681.9736 | T13: 50315.25542 | U13: 52471.61696 | V13: 52085.79287 | W13: 50753.42807 | X13: 58608.34521 | Y13: 67420.69907 | Z13: 76051.61317
E14: Základní vzdělávání, vč. škol. družin a klubů | J14: 37533.9884 | K14: 40570.93776 | L14: 42236.69068 | M14: 46962.20461 | N14: 50370.71049 | O14: 52572.37798 | P14: 57642.83096 | Q14: 65455.47489 | R14: 68261.74881 | S14: 65637.48854 | T14: 66026.74685 | U14: 68840.43885 | V14: 69775.63838 | W14: 67969.66793 | X14: 77105.26853 | Y14: 88809.2527 | Z14: 105515.0688
F15: z toho ZŠ, včetně školních družin a klubů1) | J15: 35555.83544 | K15: 38377.20852 | L15: 40635.01225 | M15: 44373.89301 | N15: 46299.76448 | O15: 49739.99499 | P15: 54598.90617 | Q15: 61792.27552 | R15: 64127.06334 | S15: 61723.61581 | T15: 62281.73476 | U15: 65147.17022 | V15: 66201.33971 | W15: 64389.67774 | X15: 73103.03566 | Y15: 84243.47838 | Z15: 100435.992
E16: Střední vzdělávání včetně konzervatoří a VOŠ | J16: 43686.28851 | K16: 44972.25582 | L16: 47291.91614 | M16: 50514.83018 | N16: 53018.37127 | O16: 54812.84436 | P16: 57271.4768 | Q16: 63973.48564 | R16: 65548.4228 | S16: 68289.42121 | T16: 69166.90783 | U16: 73118.11195 | V16: 78211.56783 | W16: 76108.03542 | X16: 83331.6828 | Y16: 100887.3065 | Z16: 111689.0783
E17: z toho | F17: gymnázia, včetně sportovních škol1) | J17: 35515.47797 | K17: 37524.6282 | L17: 39927.18632 | M17: 43114.40569 | N17: 45484.37691 | O17: 47765.73759 | P17: 49668.04569 | Q17: 53590.07492 | R17: 55140.88595 | S17: 56685.56987 | T17: 58646.1588 | U17: 60461.98417 | V17: 62579.47757 | W17: 59477.22418 | X17: 65333.29015 | Y17: 77243.37566 | Z17: 84571.45688
F18: střední odborné školy a konzervatoře, včetně VOŠ1) | J18: 40073.41009 | K18: 40981.25647 | L18: 43015.67692 | M18: 47724.16255 | N18: 48372.15261 | O18: 49484.37927 | P18: 52415.52199 | Q18: 69176.53085 | R18: 71333.04948 | S18: 75551.69768 | T18: 78470.00485 | U18: 84673.95882 | V18: 103678.6096 | W18: 101403.3755 | X18: 111254.6003 | Y18: 136901.2295 | Z18: 149698.4496
F19: střední odborná učiliště, učiliště, SPV1) | J19: 52216.22584 | K19: 53375.47503 | L19: 57072.36613 | M19: 58888.14043 | N19: 61375.55175 | O19: 63050.50607 | P19: 65486.06937 | Q19: 70445.90882 | R19: 71650.41324 | S19: 74017.11398 | T19: 71568.68848 | U19: 75443.16714 | V19: 64491.42314 | W19: 63467.23077 | X19: 68561.15363 | Y19: 81595.46523 | Z19: 94042.88973
E20: Vysoké školy včetně kolejí a menz | J20: 79169.8413 | K20: 83535.9341 | L20: 91400.34944 | M20: 95948.27279 | N20: 95130.06071 | O20: 88019.08001 | P20: 92087.9956 | Q20: 102327.1779 | R20: 106887.6945 | S20: 107856.5291 | T20: 109895.9251 | U20: 108878.4548 | V20: 118145.2298 | W20: 118215.7699 | X20: 131092.387 | Y20: 190654.5944 | Z20: 189100.6517
D21: Komentáře: | Z21: Zdroj: ZÚ – kapitola 333-MŠMT; 700-Obce a DSO, KÚ; databáze MŠMT
E22: Metodika použitá pro výpočty výdajů na žáka/studenta:
E23: • počet žáků/studentů ve školním roce = počet dětí/žáků/studentů denní formy vzdělávání + 1/3 počtu dětí/žáků/studentů ostatních forem vzdělávání, od roku 2006 1/4 počtu dětí/žáků/studentů ostatních forem vzdělávání,
E24: • přepočtený počet dětí/studentů v kalendářním roce = 2/3 počtu dětí/studentů ve školním roce, který v daném kalendářním roce končí + 1/3 počtu dětí/studentů ve školním roce, který v daném kalendářním roce začíná,
E25: • celkové výdaje na školství = běžné (neinvestiční) výdaje z rozpočtů MŠMT, Obce a DSO, KÚ (nejsou započteny výdaje z rozpočtů MO, MV a MSp, které nejsou v ucelené vývojové řadě k dispozici).
D26: 1) | E26: Bez škol pro děti/žáky/studenty se SVP.

Sheet B1.11
D4: Tab. B1.11: | H4: Školství celkem – jednotkové výdaje na žáka/studenta ve stálých cenách
D5: roku 2015 v letech 2009 až 2019 – podle druhu/typu školy/zařízení
D7: Druh/typ školy | J7: 2003 | K7: 2004 | L7: 2005 | M7: 2006 | N7: 2007 | O7: 2008 | P7: 2009 | Q7: 2010 | R7: 2011 | S7: 2012 | T7: 2013 | U7: 2014 | V7: 2015 | W7: 2016 | X7: 2017 | Y7: 2018 | Z7: 2019
E12: Předškolní vzdělávání | J12: ='B1.10'!J12/'B1.11'!J$22*100 -> 34133.43333 | K12: ='B1.10'!K12/'B1.11'!K$22*100 -> 34272.36829 | L12: ='B1.10'!L12/'B1.11'!L$22*100 -> 35730.90789 | M12: ='B1.10'!M12/'B1.11'!M$22*100 -> 46896.58355 | N12: ='B1.10'!N12/'B1.11'!N$22*100 -> 47469.82864 | O12: ='B1.10'!O12/'B1.11'!O$22*100 -> 46283.05752 | P12: ='B1.10'!P12/'B1.11'!P$22*100 -> 48116.47799 | Q12: ='B1.10'!Q12/'B1.11'!Q$22*100 -> 55421.33808 | R12: ='B1.10'!R12/'B1.11'!R$22*100 -> 51807.03224 | S12: ='B1.10'!S12/'B1.11'!S$22*100 -> 50129.87216 | T12: ='B1.10'!T12/'B1.11'!T$22*100 -> 50999.21355 | U12: ='B1.10'!U12/'B1.11'!U$22*100 -> 52946.40626 | V12: ='B1.10'!V12/'B1.11'!V$22*100 -> 52455.005 | W12: ='B1.10'!W12/'B1.11'!W$22*100 -> 50925.70408 | X12: ='B1.10'!X12/'B1.11'!X$22*100 -> 57393.33307 | Y12: ='B1.10'!Y12/'B1.11'!Y$22*100 -> 64788.31944 | Z12: ='B1.10'!Z12/'B1.11'!Z$22*100 -> 71115.84497
F13: z toho mateřské školy1) | J13: ='B1.10'!J13/'B1.11'!J$22*100 -> 33568.41184 | K13: ='B1.10'!K13/'B1.11'!K$22*100 -> 33653.71723 | L13: ='B1.10'!L13/'B1.11'!L$22*100 -> 35183.39896 | M13: ='B1.10'!M13/'B1.11'!M$22*100 -> 46110.34779 | N13: ='B1.10'!N13/'B1.11'!N$22*100 -> 46830.16729 | O13: ='B1.10'!O13/'B1.11'!O$22*100 -> 45775.74208 | P13: ='B1.10'!P13/'B1.11'!P$22*100 -> 47602.18073 | Q13: ='B1.10'!Q13/'B1.11'!Q$22*100 -> 54945.38984 | R13: ='B1.10'!R13/'B1.11'!R$22*100 -> 51429.48938 | S13: ='B1.10'!S13/'B1.11'!S$22*100 -> 49726.22432 | T13: ='B1.10'!T13/'B1.11'!T$22*100 -> 50669.94504 | U13: ='B1.10'!U13/'B1.11'!U$22*100 -> 52629.50547 | V13: ='B1.10'!V13/'B1.11'!V$22*100 -> 52085.79287 | W13: ='B1.10'!W13/'B1.11'!W$22*100 -> 50400.62371 | X13: ='B1.10'!X13/'B1.11'!X$22*100 -> 56846.11562 | Y13: ='B1.10'!Y13/'B1.11'!Y$22*100 -> 64027.25458 | Z13: ='B1.10'!Z13/'B1.11'!Z$22*100 -> 70223.09618
E14: Základní vzdělávání, vč. škol. družin a klubů | J14: ='B1.10'!J14/'B1.11'!J$22*100 -> 39302.60565 | K14: ='B1.10'!K14/'B1.11'!K$22*100 -> 41356.71535 | L14: ='B1.10'!L14/'B1.11'!L$22*100 -> 42236.69068 | M14: ='B1.10'!M14/'B1.11'!M$22*100 -> 56580.96942 | N14: ='B1.10'!N14/'B1.11'!N$22*100 -> 59051.24325 | O14: ='B1.10'!O14/'B1.11'!O$22*100 -> 57962.93051 | P14: ='B1.10'!P14/'B1.11'!P$22*100 -> 62860.23006 | Q14: ='B1.10'!Q14/'B1.11'!Q$22*100 -> 70382.23107 | R14: ='B1.10'!R14/'B1.11'!R$22*100 -> 72006.06415 | S14: ='B1.10'!S14/'B1.11'!S$22*100 -> 67045.44284 | T14: ='B1.10'!T14/'B1.11'!T$22*100 -> 66492.19219 | U14: ='B1.10'!U14/'B1.11'!U$22*100 -> 69047.5816 | V14: ='B1.10'!V14/'B1.11'!V$22*100 -> 69775.63838 | W14: ='B1.10'!W14/'B1.11'!W$22*100 -> 67497.18761 | X14: ='B1.10'!X14/'B1.11'!X$22*100 -> 74786.87539 | Y14: ='B1.10'!Y14/'B1.11'!Y$22*100 -> 84339.27132 | Z14: ='B1.10'!Z14/'B1.11'!Z$22*100 -> 97428.50309
F15: z toho ZŠ, včetně školních družin a klubů1) | J15: ='B1.10'!J15/'B1.11'!J$22*100 -> 37231.2413 | K15: ='B1.10'!K15/'B1.11'!K$22*100 -> 39120.49798 | L15: ='B1.10'!L15/'B1.11'!L$22*100 -> 40635.01225 | M15: ='B1.10'!M15/'B1.11'!M$22*100 -> 53462.5217 | N15: ='B1.10'!N15/'B1.11'!N$22*100 -> 54278.73913 | O15: ='B1.10'!O15/'B1.11'!O$22*100 -> 54840.12678 | P15: ='B1.10'!P15/'B1.11'!P$22*100 -> 59540.79189 | Q15: ='B1.10'!Q15/'B1.11'!Q$22*100 -> 66443.30701 | R15: ='B1.10'!R15/'B1.11'!R$22*100 -> 67644.58158 | S15: ='B1.10'!S15/'B1.11'!S$22*100 -> 63047.61574 | T15: ='B1.10'!T15/'B1.11'!T$22*100 -> 62720.78022 | U15: ='B1.10'!U15/'B1.11'!U$22*100 -> 65343.19982 | V15: ='B1.10'!V15/'B1.11'!V$22*100 -> 66201.33971 | W15: ='B1.10'!W15/'B1.11'!W$22*100 -> 63942.08315 | X15: ='B1.10'!X15/'B1.11'!X$22*100 -> 70904.98125 | Y15: ='B1.10'!Y15/'B1.11'!Y$22*100 -> 80003.3033 | Z15: ='B1.10'!Z15/'B1.11'!Z$22*100 -> 92738.68142
E16: Střední vzdělávání včetně konzervatoří a VOŠ | J16: ='B1.10'!J16/'B1.11'!J$22*100 -> 45744.80472 | K16: ='B1.10'!K16/'B1.11'!K$22*100 -> 45843.2781 | L16: ='B1.10'!L16/'B1.11'!L$22*100 -> 47291.91614 | M16: ='B1.10'!M16/'B1.11'!M$22*100 -> 60861.24117 | N16: ='B1.10'!N16/'B1.11'!N$22*100 -> 62155.1832 | O16: ='B1.10'!O16/'B1.11'!O$22*100 -> 60433.12499 | P16: ='B1.10'!P16/'B1.11'!P$22*100 -> 62455.26368 | Q16: ='B1.10'!Q16/'B1.11'!Q$22*100 -> 68788.69424 | R16: ='B1.10'!R16/'B1.11'!R$22*100 -> 69143.90591 | S16: ='B1.10'!S16/'B1.11'!S$22*100 -> 69754.26069 | T16: ='B1.10'!T16/'B1.11'!T$22*100 -> 69654.48925 | U16: ='B1.10'!U16/'B1.11'!U$22*100 -> 73338.12633 | V16: ='B1.10'!V16/'B1.11'!V$22*100 -> 78211.56783 | W16: ='B1.10'!W16/'B1.11'!W$22*100 -> 75578.98254 | X16: ='B1.10'!X16/'B1.11'!X$22*100 -> 80826.07449 | Y16: ='B1.10'!Y16/'B1.11'!Y$22*100 -> 95809.40788 | Z16: ='B1.10'!Z16/'B1.11'!Z$22*100 -> 103129.3428
E17: z toho | F17: gymnázia, včetně sportovních škol1) | J17: ='B1.10'!J17/'B1.11'!J$22*100 -> 37188.98217 | K17: ='B1.10'!K17/'B1.11'!K$22*100 -> 38251.4049 | L17: ='B1.10'!L17/'B1.11'!L$22*100 -> 39927.18632 | M17: ='B1.10'!M17/'B1.11'!M$22*100 -> 51945.0671 | N17: ='B1.10'!N17/'B1.11'!N$22*100 -> 53322.83343 | O17: ='B1.10'!O17/'B1.11'!O$22*100 -> 52663.43726 | P17: ='B1.10'!P17/'B1.11'!P$22*100 -> 54163.62671 | Q17: ='B1.10'!Q17/'B1.11'!Q$22*100 -> 57623.73647 | R17: ='B1.10'!R17/'B1.11'!R$22*100 -> 58165.49151 | S17: ='B1.10'!S17/'B1.11'!S$22*100 -> 57901.5014 | T17: ='B1.10'!T17/'B1.11'!T$22*100 -> 59059.57583 | U17: ='B1.10'!U17/'B1.11'!U$22*100 -> 60643.91592 | V17: ='B1.10'!V17/'B1.11'!V$22*100 -> 62579.47757 | W17: ='B1.10'!W17/'B1.11'!W$22*100 -> 59063.77774 | X17: ='B1.10'!X17/'B1.11'!X$22*100 -> 63368.85563 | Y17: ='B1.10'!Y17/'B1.11'!Y$22*100 -> 73355.53244 | Z17: ='B1.10'!Z17/'B1.11'!Z$22*100 -> 78089.98789
F18: střední odborné školy a konzervatoře, včetně VOŠ1) | J18: ='B1.10'!J18/'B1.11'!J$22*100 -> 41961.68595 | K18: ='B1.10'!K18/'B1.11'!K$22*100 -> 41774.98111 | L18: ='B1.10'!L18/'B1.11'!L$22*100 -> 43015.67692 | M18: ='B1.10'!M18/'B1.11'!M$22*100 -> 57498.99102 | N18: ='B1.10'!N18/'B1.11'!N$22*100 -> 56708.26801 | O18: ='B1.10'!O18/'B1.11'!O$22*100 -> 54558.30129 | P18: ='B1.10'!P18/'B1.11'!P$22*100 -> 57159.78407 | Q18: ='B1.10'!Q18/'B1.11'!Q$22*100 -> 74383.3665 | R18: ='B1.10'!R18/'B1.11'!R$22*100 -> 75245.83278 | S18: ='B1.10'!S18/'B1.11'!S$22*100 -> 77172.31632 | T18: ='B1.10'!T18/'B1.11'!T$22*100 -> 79023.16702 | U18: ='B1.10'!U18/'B1.11'!U$22*100 -> 84928.74505 | V18: ='B1.10'!V18/'B1.11'!V$22*100 -> 103678.6096 | W18: ='B1.10'!W18/'B1.11'!W$22*100 -> 100698.4861 | X18: ='B1.10'!X18/'B1.11'!X$22*100 -> 107909.4086 | Y18: ='B1.10'!Y18/'B1.11'!Y$22*100 -> 130010.6642 | Z18: ='B1.10'!Z18/'B1.11'!Z$22*100 -> 138225.7152
F19: střední odborná učiliště, učiliště, SPV1) | J19: ='B1.10'!J19/'B1.11'!J$22*100 -> 54676.67627 | K19: ='B1.10'!K19/'B1.11'!K$22*100 -> 54409.2508 | L19: ='B1.10'!L19/'B1.11'!L$22*100 -> 57072.36613 | M19: ='B1.10'!M19/'B1.11'!M$22*100 -> 70949.56678 | N19: ='B1.10'!N19/'B1.11'!N$22*100 -> 71952.58119 | O19: ='B1.10'!O19/'B1.11'!O$22*100 -> 69515.44219 | P19: ='B1.10'!P19/'B1.11'!P$22*100 -> 71413.3799 | Q19: ='B1.10'!Q19/'B1.11'!Q$22*100 -> 75748.28906 | R19: ='B1.10'!R19/'B1.11'!R$22*100 -> 75580.60468 | S19: ='B1.10'!S19/'B1.11'!S$22*100 -> 75604.8151 | T19: ='B1.10'!T19/'B1.11'!T$22*100 -> 72073.20088 | U19: ='B1.10'!U19/'B1.11'!U$22*100 -> 75670.17767 | V19: ='B1.10'!V19/'B1.11'!V$22*100 -> 64491.42314 | W19: ='B1.10'!W19/'B1.11'!W$22*100 -> 63026.04844 | X19: ='B1.10'!X19/'B1.11'!X$22*100 -> 66499.66405 | Y19: ='B1.10'!Y19/'B1.11'!Y$22*100 -> 77488.57097 | Z19: ='B1.10'!Z19/'B1.11'!Z$22*100 -> 86835.53991
E20: Vysoké školy včetně kolejí a menz | J20: ='B1.10'!J20/'B1.11'!J$22*100 -> 82900.35738 | K20: ='B1.10'!K20/'B1.11'!K$22*100 -> 85153.85739 | L20: ='B1.10'!L20/'B1.11'!L$22*100 -> 91400.34944 | M20: ='B1.10'!M20/'B1.11'!M$22*100 -> 115600.3287 | N20: ='B1.10'!N20/'B1.11'!N$22*100 -> 111524.104 | O20: ='B1.10'!O20/'B1.11'!O$22*100 -> 97044.18965 | P20: ='B1.10'!P20/'B1.11'!P$22*100 -> 100423.1141 | Q20: ='B1.10'!Q20/'B1.11'!Q$22*100 -> 110029.2235 | R20: ='B1.10'!R20/'B1.11'!R$22*100 -> 112750.7326 | S20: ='B1.10'!S20/'B1.11'!S$22*100 -> 110170.1013 | T20: ='B1.10'!T20/'B1.11'!T$22*100 -> 110670.6195 | U20: ='B1.10'!U20/'B1.11'!U$22*100 -> 109206.073 | V20: ='B1.10'!V20/'B1.11'!V$22*100 -> 118145.2298 | W20: ='B1.10'!W20/'B1.11'!W$22*100 -> 117394.0118 | X20: ='B1.10'!X20/'B1.11'!X$22*100 -> 127150.7149 | Y20: ='B1.10'!Y20/'B1.11'!Y$22*100 -> 181058.4942 | Z20: ='B1.10'!Z20/'B1.11'!Z$22*100 -> 174608.1733
D21: Index spotřebitelských cen a meziroční inflace
E22: Index spotřebitelských cen (rok 2015 = 100) | J22: 95.5 | K22: 98.1 | L22: 100 | M22: 83 | N22: 85.3 | O22: 90.7 | P22: 91.7 | Q22: 93 | R22: 94.8 | S22: 97.9 | T22: 99.3 | U22: 99.7 | V22: 100 | W22: 100.7 | X22: 103.1 | Y22: 105.3 | Z22: 108.3
E23: Meziroční inflace | J23: 0.001 | K23: 0.028 | L23: 0.019 | M23: 0.025 | N23: 0.028 | O23: 0.063 | P23: 0.01 | Q23: 0.015 | R23: 0.019 | S23: 0.033 | T23: 0.014 | U23: 0.004 | V23: 0.003 | W23: 0.007 | X23: 0.025 | Y23: 0.021 | Z23: 0.028
D24: Komentáře: | Z24: Zdroj: ZÚ – kapitola 333-MŠMT; 700-Obce a DSO, KÚ; databáze MŠMT
E25: Metodika použitá pro výpočty výdajů na žáka/studenta:
E26: • počet žáků/studentů ve školním roce = počet dětí/žáků/studentů denní formy vzdělávání + 1/3 počtu dětí/žáků/studentů ostatních forem vzdělávání, od roku 2006 1/4 počtu dětí/žáků/studentů ostatních forem vzdělávání,
E27: • přepočtený počet dětí/studentů v kalendářním roce = 2/3 počtu dětí/studentů ve školním roce, který v daném kalendářním roce končí + 1/3 počtu dětí/studentů ve školním roce, který v daném kalendářním roce začíná,
E28: • celkové výdaje na školství = běžné (neinvestiční) výdaje z rozpočtů MŠMT, Obce a DSO, KÚ (nejsou započteny výdaje z rozpočtů MO, MV a MSp, které nejsou v ucelené vývojové řadě k dispozici).
D29: 1) | E29: Bez škol pro děti/žáky/studenty se SVP.
D30: Od ledna 2017 je nově zavedena časová řada bazických indexů se základem průměr roku 2015 = 100. Z této časové řady jsou počítány indexy k dalším základům (předchozí měsíc = 100, stejné období předchozího roku = 100 a index klouzavých průměrů za posledních 12 měsíců k průměru 12 předcházejících měsíců). Indexy vypočtené z dosavadní časové řady bazických indexů průměr roku 2005 = 100 zůstávají platné, nedochází k revizi již publikovaných údajů.

Sheet B1.12
D4: Tab. B1.12: | H4: Školství celkem, neveřejné školy a školská zařízení – výše dotací
D5: z rozpočtu kapitoly 333-MŠMT v letech 2009 až 2019 – podle zřizovatele
Z6: v tis. Kč
D7: Zřizovatel | J7: 2003 | K7: 2004 | L7: 2005 | M7: 2006 | N7: 2007 | O7: 2008 | P7: 2009 | Q7: 2010 | R7: 2011 | S7: 2012 | T7: 2013 | U7: 2014 | V7: 2015 | W7: 2016 | X7: 2017 | Y7: 2018 1) | Z7: 2019 2)
E12: Neveřejné celkem/Název paragrafu oddílu 31 - 32 rozpočtové skladby | J12: 3341562.91 | K12: 3580016.647 | L12: 3849801.818 | M12: 4243343.946 | N12: 4528406.722 | O12: 4889100.715 | P12: 5026755.783 | Q12: =Q13+Q16 -> 5100180.077 | R12: 5088128.125 | S12: 5117480.223 | T12: 5193374.17 | U12: 5335669.36 | V12: =V13+V16 -> 5613875.27 | W12: =W13+W16 -> 5985393.74 | X12: =X13+X16 -> 6718192.14 | Y12: 7636504.569 | Z12: 8670424.102
D13: v tom | F13: soukromé | J13: 2723177.65 | K13: 2912555.879 | L13: 3123623.988 | M13: 3461196.839 | N13: 3672308.703 | O13: 3941870 | P13: 3999147.458 | Q13: 4081244 | R13: 4008208 | S13: 3984927 | T13: 4004119.17 | U13: 4093501.36 | V13: 4238874.12 | W13: 4547489.11 | X13: 5126862.33 | Y13: =SUM(Y14:Y15) -> 5908983.674 | Z13: =SUM(Z14:Z15) -> 6795485.165
G14: Soukromé školy_kraj | Y14: 5881931.564 | Z14: 6769061.535
G15: Vysoké školy | Y15: 27052.11 | Z15: 26423.63
F16: církevní | J16: 618385.26 | K16: 667460.768 | L16: 726177.8296 | M16: 782147.107 | N16: 856098.019 | O16: 947230.7145 | P16: 1027608.325 | Q16: 1018936.077 | R16: 1079920.125 | S16: 1132553.223 | T16: 1189255 | U16: 1242168 | V16: 1375001.15 | W16: 1437904.63 | X16: 1591329.81 | Y16: =SUM(Y17:Y35) -> 1727520.894 | Z16: =SUM(Z17:Z35) -> 1874938.937
G17: Mateřské školy | Y17: 97130.933 | Z17: 106255.7383
G18: Mateřské školy pro děti se speciálními vzdělávacími potřebami | Y18: 15040.062 | Z18: 15724.797
G19: Základní školy | Y19: 385795.6277 | Z19: 428133.2403
G20: Základní školy pro žáky se speciálními vzdělávacími potřebami | Y20: 122798.779 | Z20: 156283.498
G21: Gymnázia | Y21: 391182.795 | Z21: 426819.32
G22: Střední odborné školy | Y22: 137923.879 | Z22: 142450.498
G23: Střední školy poskytující střední vzdělání s výučním listem | Y23: 16146.198 | Z23: 17161.024
G24: Střední školy a konzervatoře pro žáky se speciálními vzdělávacími potřebami | Y24: 46267.089 | Z24: 47717.636
G25: Konzervatoře | Y25: 41436.175 | Z25: 47344.76483
G26: Dětské domovy | Y26: 15953.45853 | Z26: 17245.99
G27: Školní stravování | Y27: 73199.344 | Z27: 78182.682
G28: Školní družiny a kluby | Y28: 107478.978 | Z28: 115803.449
G29: Internáty | Y29: 6448.792 | Z29: 6929.085
G30: Zařízení výchovného poradenství | Y30: 12622.974 | Z30: 14241.588
G31: Domovy mládeže | Y31: 52832.237 | Z31: 58523.08767
G32: Vyšší odborné školy | Y32: 62546.87925 | Z32: 56944.246
G33: Základní umělecké školy | Y33: 19749.495 | Z33: 22633.385
G34: Střediska volného času | Y34: 110718.079 | Z34: 114123.579
G35: Ostatní záležitosti vzdělávání 3) | Y35: 12249.12 | Z35: 2421.3288
Z36: Zdroj: Centrální registr dotací MF
D37: Komentáře:
D38: 1), 2) | E38: Údaje představují spotřebované dotace církevními a soukromými školami dle paragrafů (oddíl 31 - 32 rozpočtové skladby)
D39: 3) | E39: Zahrnuty rozvojové programy.

Sheet B1.13
D4: Tab. B1.13: | H4: Školství celkem – přepočtené počty zaměstnanců
D5: v letech 2009 až 2019
J7: 2003 | K7: 2004 | L7: 2005 | M7: 2006 | N7: 2007 | O7: 2008 | P7: 2009 | Q7: 2010 | R7: 2011 | S7: 2012 | T7: 2013 | U7: 2014 | V7: 2015 | W7: 2016 | X7: 2017 | Y7: 2018 | Z7: 2019
D12: Všichni zřizovatelé (bez jiných resortů)
E13: Školy celkem | J13: 276992.802 | K13: 274522.581 | L13: 272617 | M13: 271763.247 | N13: 271496.954 | O13: 270439.558 | P13: 270377.906 | Q13: 271230.417 | R13: 269703.204 | S13: 268433.19 | T13: 269912.457 | U13: 272641.522 | V13: 274992.819 | W13: 277733.976 | X13: 286176.737 | Y13: 295087.2541 | Z13: 303799.212
E14: v tom | F14: regionální školství | J14: 244248.254 | K14: 241290.158 | L14: 238113.3 | M14: 236084.974 | N14: 234899.479 | O14: 233315.317 | P14: 232614.73 | Q14: 233147.791 | R14: 231528.716 | S14: 229787.503 | T14: 229649.459 | U14: 231920.141 | V14: 235149.154 | W14: 238449.134 | X14: 246237.879 | Y14: 253506.6341 | Z14: 260970.804
F15: vysoké školy1) | J15: 32744.548 | K15: 33232.423 | L15: 34503.596 | M15: 35678.273 | N15: 36597.475 | O15: 37124.241 | P15: 37763.176 | Q15: 38082.626 | R15: 38174.488 | S15: 38645.687 | T15: 40262.998 | U15: 40721.381 | V15: 39843.665 | W15: 39284.842 | X15: 39938.858 | Y15: 41580.62 | Z15: 42828.408
E16: Ostatní přímo řízené organizace PO2) | J16: 1057.539 | K16: 1064.248 | L16: 916.569 | M16: 918.658 | N16: 917.918 | O16: 840.519 | P16: 976.345 | Q16: 1116.504 | R16: 1029.563 | S16: 851.764 | T16: 800.076 | U16: 796.4 | V16: 745.469 | W16: 745.547 | X16: 871.644 | Y16: 982.765 | Z16: 988.985
E17: v tom | F17: OPŘO odměňující dle § 109 odst. 3 ZP4) | J17: 1057.539 | K17: 1064.248 | L17: 916.569 | M17: 918.658 | N17: 884.846 | O17: 807.794 | P17: 944.99 | Q17: 1088.554 | R17: 1004.671 | S17: 832.174 | T17: 785.407 | U17: 784.923 | V17: 734.078 | W17: 736.465 | X17: 864.556 | Y17: 973.909 | Z17: 977.637
F18: OPŘO odměňující dle § 109 odst. 2 ZP3) | J18: x | K18: x | L18: x | M18: x | N18: 33.072 | O18: 32.725 | P18: 31.355 | Q18: 27.95 | R18: 24.892 | S18: 19.59 | T18: 14.669 | U18: 11.483 | V18: 11.391 | W18: 9.082 | X18: 7.088 | Y18: 8.856 | Z18: 11.348
E19: Ostatní organizační složky státu (VSC, CZVV)4) | J19: 98 | K19: 96 | L19: 94 | M19: 138.49 | N19: 141.58 | O19: 161.863 | P19: 111.254 | Q19: 92 | R19: 92 | S19: 91.44 | T19: 91.975 | U19: 94 | V19: 95.913 | W19: 96 | X19: 125 | Y19: 129.403 | Z19: 126
D20: Komentáře: | Z20: Zdroj: databáze MŠMT
D21: 1) | E21: Veřejné vysoké školy včetně kolejí, menz, vysokoškolských zemědělských a lesních statků, včetně zaměstnanců výzkumu a vývoje.
D22: 2) | E22: Ostatní přímo řízené organizace včetně pedagogických center (VSC od 1. 3. 2003 změnilo formu hospodaření z OPŘO PO na organizační složku státu, CZVV od 1. 1. 2006).
D23: 3) | E23: VKC a CSVŠ od 1. 1. 2007 odměňují podle zákona č. 262/06 Sb., § 109 odst. 2.
D24: 4) | E24: CZVV změnilo od 1. 4. 2009 formu hospodaření z ostatní OSS na OPŘO PO, data jsou kumulativní.

Sheet B1.14
D4: Tab. B1.14: | H4: Školství celkem – průměrné měsíční mzdy
D5: v letech 2009 až 2019
D6: Data za jednotlivé roky jsou přepočtena ve srovnatelné metodice – nemusí souhlasit s dřívějšími publikacemi.
J7: 2003 | K7: 2004 | L7: 2005 | M7: 2006 | N7: 2007 | O7: 2008 | P7: 2009 | Q7: 2010 | R7: 2011 | S7: 2012 | T7: 2013 | U7: 2014 | V7: 2015 | W7: 2016 | X7: 2017 | Y7: 2018 | Z7: 2019
O11: 5) | P11: 5) | Q11: 5) | R11: 5) | S11: 5) | T11: 5) | U11: 5) | V11: 5) | W11: 5) | X11: 5) | Y11: 5) | Z11: 5)
D12: Všichni zřizovatelé (bez jiných resortů)
D13: Nominální mzda (v běžných cenách)
E14: Celkem ČR5) | J14: 17446 | K14: 18583 | L14: 19584 | M14: 20844 | N14: 22384 | O14: 22691 | P14: 23344 | Q14: 23864 | R14: 24455 | S14: 25067 | T14: 25035 | U14: 25768 | V14: 26591 | W14: 27575 | X14: 29504 | Y14: 31885 | Z14: 34125
E15: Nepodnikatelská sféra5) | J15: 17692 | K15: 18715 | L15: 19876 | M15: 20975 | N15: 22387 | O15: 23337 | P15: 24432 | Q15: 24265 | R15: 24469 | S15: 25037 | T15: 25255 | U15: 25863 | V15: 26807 | W15: 28076 | X15: . | Y15: . | Z15: .
E16: Školy celkem | J16: 16211.682 | K16: 17368.008 | L16: 18668.76622 | M16: 19864 | N16: 21107.9578 | O16: 21893.95764 | P16: 23272.00466 | Q16: 22904.52219 | R16: 23577.79278 | S16: 24248.10819 | T16: 24628.19749 | U16: 25039.64168 | V16: 25475.55864 | W16: 25562.78916 | X16: 28343.60621 | Y16: 31370.65829 | Z16: 35313.13144
E17: v tom | F17: regionální školství | J17: 15707.912 | K17: 16698.908 | L17: 17712.68059 | M17: 18787 | N17: 19841.65428 | O17: 20519.08244 | P17: 21890.62531 | Q17: 21457.94822 | R17: 22059.45331 | S17: 22600.39345 | T17: 22736.16042 | U17: 23105.29882 | V17: 23637.34732 | W17: 24814.03037 | X17: 26608.58184 | Y17: 29476 | Z17: 33529.75575
F18: vysoké školy1) | J18: 19969.411 | K18: 22226.131 | L18: 25266.82354 | M18: 26991 | N18: 29235.67804 | O18: 30534.658 | P18: 31781.06606 | Q18: 31760.67425 | R18: 32786.53946 | S18: 34045.43059 | T18: 35419.875 | U18: 36056.28843 | V18: 36324.30555 | W18: 36821.2662 | X18: 39040.68698 | Y18: 42921.62192 | Z18: 46179.96047
E19: Ostatní přímo řízené organizace PO2) | J19: 17516.08 | K19: 18144.003 | L19: 19608.1888 | M19: 20960 | N19: 21968.47876 | O19: 23528.11368 | P19: 26621.53175 | Q19: 27058.29618 | R19: 27945.57999 | S19: 28669.56966 | T19: 29100.91989 | U19: 29353.22849 | V19: 29717.32258 | W19: 29779.40648 | X19: 33228.46368 | Y19: 36518.35578 | Z19: 38657.10577
E20: v tom | F20: OPŘO odměňující dle § 109 odst. 3 ZP | J20: 17516.08 | K20: 18144.003 | L20: 19608.1888 | M20: 20960 | N20: 21839.69216 | O20: 23353.32977 | P20: 26560.09843 | Q20: 26994.27053 | R20: 27889.5553 | S20: 28614.72731 | T20: 29043.74675 | U20: 29271.61996 | V20: 29743.05819 | W20: 29675.80876 | X20: 33200.39419 | Y20: 36472.4757 | Z20: 38636.77827
F21: OPŘO odměňující dle § 109 odst. 2 ZP3) | J21: x | K21: x | L21: x | M21: x | N21: 25414.18219 | O21: 27842.53374 | P21: 28473.0346 | Q21: 29551.86941 | R21: 30206.80339 | S21: 30999.24706 | T21: 32162.08217 | U21: 34916.26027 | V21: 28058.82568 | W21: 38180.20994 | X21: 36652.22912 | Y21: 41563.86442 | Z21: 40408.33186
E22: Ostatní organizační složky státu (VSC, CZVV)4) | J22: 16560.78 | K22: 18605.035 | L22: 19459.65603 | M22: 22117 | N22: 23609.62177 | O22: 24405.51269 | P22: 26855.57673 | Q22: 26448.32156 | R22: 26649.37862 | S22: 27082.2944 | T22: 28993.38588 | U22: 30353.7234 | V22: 31181.4231 | W22: 31886.32465 | X22: 34136.19 | Y22: 38268.36962 | Z22: 39501.36376
D23: Reálná mzda (ve stálých cenách roku 2015)
E24: Celkem ČR | J24: =J14/J$34*100 -> 18268.06283 | K24: 18942.91539 | L24: 19584 | M24: 25113.25301 | N24: 26241.50059 | O24: =O14/O$34*100 -> 25017.64057 | P24: 25456.92475 | Q24: 25660.21505 | R24: =R14/R$34*100 -> 25796.4135 | S24: 25604.69867 | T24: 25211.48036 | U24: =U14/U$34*100 -> 25845.53661 | V24: 26591 | W24: 27383.31678 | X24: =X14/X$34*100 -> 28616.87682 | Y24: 30280.15195 | Z24: 31509.69529
E25: Nepodnikatelská sféra | J25: 18525.65445 | K25: 19077.47197 | L25: 19876 | M25: 25271.08434 | N25: 26245.01758 | O25: 25729.87872 | P25: 26643.4024 | Q25: 26091.39785 | R25: 25811.18143 | S25: 25574.05516 | T25: 25433.03122 | U25: 25940.82247 | V25: 26807 | W25: 27880.83416 | X25: . | Y25: . | Z25: .
E26: Školy celkem | J26: 16975.58325 | K26: 17704.39144 | L26: 18668.76622 | M26: 23932.53012 | N26: 24745.55428 | O26: 24138.87281 | P26: 25378.41293 | Q26: 24628.51849 | R26: 24871.08943 | S26: 24768.24126 | T26: 24801.81017 | U26: 25114.98664 | V26: 25475.55864 | W26: 25385.0935 | X26: =X16/X$34*100 -> 27491.37363 | Y26: 29791.69828 | Z26: 32606.76957
E27: v tom | F27: regionální školství | J27: 16448.07539 | K27: 17022.33231 | L27: 17712.68059 | M27: 22634.93976 | N27: 23261.02494 | O27: 22623.02364 | P27: 23872.00143 | Q27: 23073.0626 | R27: 23269.46551 | S27: 23085.18228 | T27: 22896.43547 | U27: 23174.82329 | V27: 23637.34732 | W27: 24641.53959 | X27: =X17/X$34*100 -> 25808.51779 | Y27: 27992.40266 | Z27: 30960.06995
F28: vysoké školy1) | J28: 20910.37801 | K28: 22656.60652 | L28: 25266.82354 | M28: 32519.27711 | N28: 34273.94847 | O28: 33665.55458 | P28: 34657.6511 | Q28: 34151.26264 | R28: 34584.95724 | S28: 34775.72073 | T28: 35669.56193 | U28: 36164.78278 | V28: 36324.30555 | W28: 36565.30903 | X28: =X18/X$34*100 -> 37866.81569 | Y28: 40761.27438 | Z28: 42640.77605
E29: Ostatní přímo řízené organizace PO2) | J29: 18341.44503 | K29: 18495.4159 | L29: 19608.1888 | M29: 25253.01205 | N29: 25754.37134 | O29: 25940.5884 | P29: 29031.11423 | Q29: 29094.94213 | R29: 29478.4599 | S29: 29284.54511 | T29: 29306.06233 | U29: 29441.55315 | V29: 29717.32258 | W29: 29572.39969 | X29: =X19/X$34*100 -> 32229.35372 | Y29: 34680.29988 | Z29: 35694.46516
E30: v tom | F30: OPŘO odměňující dle § 109 odst. 3 ZP | J30: 18341.44503 | K30: 18495.4159 | L30: 19608.1888 | M30: 25253.01205 | N30: 25603.39058 | O30: 25747.88288 | P30: 28964.12043 | Q30: 29026.09735 | R30: 29419.36213 | S30: 29228.52636 | T30: 29248.48615 | U30: 29359.69905 | V30: 29743.05819 | W30: 29469.52211 | X30: =X20/X$34*100 -> 32202.12822 | Y30: 34636.72906 | Z30: 35675.69554
F31: OPŘO odměňující dle § 109 odst. 2 ZP3) | J31: x | K31: x | L31: x | M31: x | N31: =N21/N$34*100 -> 29793.88299 | O31: 30697.39111 | P31: 31050.20131 | Q31: 31776.20367 | R31: 31863.71666 | S31: 31664.19516 | T31: 32388.8038 | U31: 35021.32424 | V31: 28058.82568 | W31: 37914.8063 | X31: =X21/X$34*100 -> 35550.17373 | Y31: 39471.85605 | Z31: 37311.4791
E32: Ostatní organizační složky státu (VSC, CZVV)4) | J32: =J22/J$34*100 -> 17341.13089 | K32: =K22/K$34*100 -> 18965.37717 | L32: =L22/L$34*100 -> 19459.65603 | M32: =M22/M$34*100 -> 26646.98795 | N32: =N22/N$34*100 -> 27678.33736 | O32: 26907.95225 | P32: 29286.34322 | Q32: 28439.05544 | R32: 28111.15889 | S32: 27663.22206 | T32: 29197.77028 | U32: 30445.05858 | V32: 31181.4231 | W32: 31664.67195 | X32: =X22/X$34*100 -> 33109.78661 | Y32: 36342.23135 | Z32: 36474.02009
D33: Index spotřebitelských cen a meziroční inflace
E34: Index spotřebitelských cen (rok 2015 = 100) | J34: 95.5 | K34: 98.1 | L34: 100 | M34: 83 | N34: 85.3 | O34: 90.7 | P34: 91.7 | Q34: 93 | R34: 94.8 | S34: 97.9 | T34: 99.3 | U34: 99.7 | V34: 100 | W34: 100.7 | X34: 103.1 | Y34: 105.3 | Z34: 108.3
E35: Meziroční inflace | J35: 0.001 | K35: 0.028 | L35: 0.019 | M35: 0.025 | N35: 0.028 | O35: 0.063 | P35: 0.01 | Q35: 0.015 | R35: 0.019 | S35: 0.033 | T35: 0.014 | U35: 0.004 | V35: 0.003 | W35: 0.007 | X35: 0.025 | Y35: 0.021 | Z35: 0.028
D36: Komentáře: | Z36: Zdroj: databáze MŠMT, ČSÚ
D37: 1) | E37: Veřejné vysoké školy včetně kolejí, menz, vysokoškolských zemědělských a lesních statků, včetně zaměstnanců výzkumu a vývoje.
D38: 2) | E38: Ostatní přímo řízené organizace včetně pedagogických center (VSC od 1. 3. 2003 změnilo formu hospodaření z OPŘO PO na organizační složku státu, CZVV od 1. 1. 2006).
D39: 3) | E39: VKC a CSVŠ od 1. 1. 2007 odměňují podle zákona č. 262/06 Sb., § 109 odst. 2.
D40: 4) | E40: CZVV změnilo od 1. 4. 2009 formu hospodaření z ostatní OSS na OPŘO PO, data jsou kumulativní.
D41: 5) | E41: Od 1. 1. 2009 ČSÚ přešel na novou metodiku výpočtu průměrných mezd, kde přednost dostaly údaje za přepočtené počty zaměstnanců a také za nezjišťované podnikatelské subjekty s méně než 20 zaměstnanci (ČR úhrnem). Data před rokem 2008 (bez podlimitních ekonomických subjektů) jsou nesrovnatelná s daty podle nové metodiky v roce 2008 a roce 2009.

Sheet GB1
D4: Obr. B1 | H4: Školství celkem – počet škol ve školním roce 2009/10 až 2019/20 – podle druhu školy
K10: 2003/04 | L10: 2004/05 | M10: 2005/06 | N10: 2007/08 | O10: 2008/09 | P10: 2009/10 | Q10: 2010/11 | R10: 2011/12 | S10: 2012/13 | T10: 2013/14 | U10: 2014/15 | V10: 2015/16 | W10: 2016/17 | X10: 2017/18 | Y10: 2018/19 | Z10: 2019/20
J11: MŠ | K11: 5067 | L11: 4994 | M11: 4834 | N11: 4808 | O11: 4809 | P11: 4826 | Q11: 4880 | R11: 4931 | S11: 5011 | T11: 5085 | U11: 5158 | V11: 5209 | W11: 5209 | X11: 5269 | Y11: 5287 | Z11: 5304
J12: ZŠ | K12: 4838 | L12: 4765 | M12: 4474 | N12: 4155 | O12: 4133 | P12: 4125 | Q12: 4123 | R12: 4111 | S12: 4095 | T12: 4095 | U12: 4106 | V12: 4115 | W12: 4140 | X12: 4155 | Y12: 4172 | Z12: 4192
J13: SŠ | K13: 2006 | L13: 1966 | M13: 2004 | N13: 1447 | O13: 1438 | P13: 1433 | Q13: 1423 | R13: 1393 | S13: 1347 | T13: 1331 | U13: 1310 | V13: 1304 | W13: 1307 | X13: 1308 | Y13: 1290 | Z13: 1284
J14: Konzervatoře | K14: 17 | L14: 17 | M14: 17 | N14: 19 | O14: 18 | P14: 17 | Q14: 18 | R14: 18 | S14: 18 | T14: 18 | U14: 18 | V14: 18 | W14: 18 | X14: 18 | Y14: 18 | Z14: 18
J15: VOŠ | K15: 169 | L15: 174 | M15: 176 | N15: 177 | O15: 184 | P15: 184 | Q15: 182 | R15: 180 | S15: 178 | T15: 174 | U15: 174 | V15: 171 | W15: 168 | X15: 166 | Y15: 166 | Z15: 160
J16: VŠ veřejné a soukromé | K16: 52 | L16: 60 | M16: 64 | N16: 68 | O16: 71 | P16: 71 | Q16: 70 | R16: 71 | S16: 70 | T16: 69 | U16: 69 | V16: 67 | W16: 63 | X16: 62 | Y16: 62 | Z16: 58
Z39: Zdroj: databáze MŠMT

Sheet GB2
D4: Obr. B2 | G4: Školství celkem – struktura dětí/žáků/studentů ve školním roce 2009/10 až 2019/20 – podle druhu školy
J10: 2003/04 | K10: 2004/05 | L10: 2005/06 | M10: 2007/08 | N10: 2008/09 | O10: 2009/10 | P10: 2010/11 | Q10: 2011/12 | R10: 2012/13 | S10: 2013/14 | T10: 2014/15 | U10: 2015/16 | V10: 2016/17 | W10: 2017/18 | X10: 2018/19 | Y10: 2019/20
I11: MŠ | J11: 284166 | K11: 284218 | L11: 282183 | M11: 291194 | N11: 301620 | O11: 314008 | P11: 328612 | Q11: 342521 | R11: 354340 | S11: 363568 | T11: 367603 | U11: 367361 | V11: 362653 | W11: 362756 | X11: 363776 | Y11: 364909
I12: ZŠ | J12: 992770 | K12: 953655 | L12: 916575 | M12: 844863 | N12: 816015 | O12: 794459 | P12: 789486 | Q12: 794642 | R12: 807950 | S12: 827654 | T12: 854137 | U12: 880251 | V12: 906188 | W12: 926108 | X12: 940928 | Y12: 952946
I13: SŠ | J13: 576615 | K13: 579505 | L13: 577605 | M13: 569267 | N13: 564326 | O13: 556260 | P13: 532918 | Q13: 501220 | R13: 470754 | S13: 448792 | T13: 435542 | U13: 427107 | V13: 425138 | W13: 421535 | X13: 420814 | Y13: 423838
I14: Konzervatoře | J14: 3543 | K14: 3505 | L14: 3495 | M14: 3606 | N14: 3535 | O14: 3435 | P14: 3560 | Q14: 3557 | R14: 3655 | S14: 3690 | T14: 3752 | U14: 3733 | V14: 3795 | W14: 3781 | X14: 3813 | Y14: 3836
I15: VOŠ | J15: 30681 | K15: 29759 | L15: 28792 | M15: 28774 | N15: 28027 | O15: 28749 | P15: 29800 | Q15: 29335 | R15: 28980 | S15: 28332 | T15: 26964 | U15: 24786 | V15: 22002 | W15: 19883 | X15: 18416 | Y15: 17954
I16: VŠ | J16: 243723 | K16: 264776 | L16: 289465 | M16: 343943 | N16: 368050 | O16: 388990 | P16: 395979 | Q16: 392039 | R16: 380891 | S16: 367747 | T16: 346893 | U16: 326528 | V16: 311168 | W16: 299054 | X16: 290099 | Y16: 288915
D40: Komentáře: | Y40: Zdroj: databáze MŠMT
E41: U VŠ počet studií.

Sheet GB3
D4: Obr. B3 | G4: Školství celkem – struktura veřejných výdajů (v %) v letech 2009 až 2019
J10: 2003 | K10: 2004 | L10: 2005 | M10: 2006 | N10: 2007 | O10: 2008 | P10: 2009 | Q10: 2010 | R10: 2011 | S10: 2012 | T10: 2013 | U10: 2014 | V10: 2015 | W10: 2016 | X10: 2017 | Y10: 2018 | Z10: 2019
I11: Předškolní vzdělávání | J11: 0.08427983921 | K11: 0.08363067843 | L11: 0.08467173608 | M11: 0.08383834559 | N11: 0.08286769385 | O11: 0.09333840848 | P11: 0.09749361289 | Q11: 0.09991917964 | R11: 0.09370803076 | S11: 0.09881280323 | T11: 0.1032741356 | U11: 0.1080936109 | V11: 0.1056900345 | W11: 0.1084562967 | X11: 0.1105071095 | Y11: 0.1122 | Z11: 0.1135
I12: Základní vzdělávání včetně školních družin a klubů | J12: 0.3687097353 | K12: 0.3646786863 | L12: 0.337443086 | M12: 0.3370967022 | N12: 0.3128792608 | O12: 0.3280994749 | P12: 0.3300173712 | Q12: 0.321175131 | R12: 0.3139819925 | S12: 0.309175531 | T12: 0.3157450056 | U12: 0.3255505077 | V12: 0.3327852655 | W12: 0.3522656706 | X12: 0.365199874 | Y12: 0.377 | Z12: 0.4062
I13: Střední vzdělávání včetně VOŠ a konzervatoří | J13: 0.2290480537 | K13: 0.2273839256 | L13: 0.2252223374 | M13: 0.2205043293 | N13: 0.2117485435 | O13: 0.2231170109 | P13: 0.2170623318 | Q13: 0.2116189503 | R13: 0.1955135252 | S13: 0.1945447183 | T13: 0.1858641636 | U13: 0.1821820563 | V13: 0.1859533148 | W13: 0.1888539249 | X13: 0.1823736976 | Y13: 0.1949 | Z13: 0.1931
I14: Vysoké školy | J14: 0.1769972424 | K14: 0.1856725324 | L14: 0.2029053563 | M14: 0.2030969671 | N14: 0.2261867105 | O14: 0.2069091193 | P14: 0.2056221125 | Q14: 0.1982564887 | R14: 0.1970063227 | S14: 0.1999105209 | T14: 0.1980807033 | U14: 0.1833190641 | V14: 0.1840370451 | W14: 0.1837500329 | X14: 0.1730554673 | Y14: 0.215 | Z14: 0.1876
I15: Ostatní výdaje | J15: 0.1409651294 | K15: 0.1386341772 | L15: 0.1497574842 | M15: 0.1554636558 | N15: 0.1663177914 | O15: 0.1485359864 | P15: 0.1498045716 | Q15: 0.1690302504 | R15: 0.1997901287 | S15: 0.1975564266 | T15: 0.1970359918 | U15: 0.200854761 | V15: 0.1915343402 | W15: 0.1666740748 | X15: 0.1688638516 | Y15: 0.0352 | Z15: 0.0325
Z36: Zdroj: Státní závěrečný účet ČR; ZÚ - kapitola 333-MŠMT; 700-Obce a DSO, KÚ; ZÚ ostatních resortů; ČSÚ

Sheet GB4
D4: Obr. B4 | G4: Školství celkem – jednotkové výdaje na dítě, žáka, studenta v tis. Kč v letech 2009 až 2019 – podle úrovně vzdělávání
J10: 2003 | K10: 2004 | L10: 2007 | M10: 2008 | N10: 2009 | O10: 2010 | P10: 2011 | Q10: 2012 | R10: 2013 | S10: 2014 | T10: 2015 | U10: 2016 | V10: 2017 | W10: 2018 | X10: 2019
I11: Předškolní vzdělávání | J11: 32.59742883 | K11: 33.62119329 | L11: 40.49176745 | M11: 41.97873317 | N11: 44.12281032 | O11: 51.54184442 | P11: 49.11306656 | Q11: 49.07714485 | R11: 50.64221906 | S11: 52.78756704 | T11: 52.455005 | U11: 51.28218401 | V11: 59.17252639 | W11: 68.22210037 | X11: 77.0184601
I12: Základní vzdělávání | J12: 37.5339884 | K12: 40.57093776 | L12: 50.36614959 | M12: 52.57237798 | N12: 57.64283096 | O12: 65.45547489 | P12: 68.26174881 | Q12: 65.63748854 | R12: 66.02674685 | S12: 68.84043885 | T12: 69.77563838 | U12: 67.96966793 | V12: 77.10526853 | W12: 88.8092527 | X12: 105.5150688
I13: Střední vzdělávání včetně konzervatoří a VOŠ a konzervatoří | J13: 43.68628851 | K13: 44.97225582 | L13: 53.01837127 | M13: 54.81284436 | N13: 57.2714768 | O13: 63.97348564 | P13: 65.5484228 | Q13: 68.28942121 | R13: 69.16690783 | S13: 73.11811195 | T13: 78.21156783 | U13: 76.10803542 | V13: 83.3316828 | W13: 100.8873065 | X13: 111.6890783
X36: Zdroj: Státní závěrečný účet ČR; ZÚ - kapitola 333-MŠMT; 700-Obce a DSO, KÚ; ZÚ ostatních resortů; ČSÚ

Sheet GB5
D4: Obr. B5 | H4: Školství celkem – průměrné nominální měsíční mzdy v letech 2009 až 2019
K10: 2003 | L10: 2004 | M10: 2005 | N10: 2007 | O10: 2008 | P10: 2009 | Q10: 2010 | R10: 2011 | S10: 2012 | T10: 2013 | U10: 2014 | V10: 2015 | W10: 2016 | X10: 2017 | Y10: 2018 | Z10: 2019
J11: RgŠ – všichni zřizovatelé | K11: 15707.912 | L11: 16698.908 | M11: 17712.68059 | N11: 19841.65428 | O11: 20519.08244 | P11: ='B1.14'!P17 -> 21890.62531 | Q11: ='B1.14'!Q17 -> 21457.94822 | R11: ='B1.14'!R17 -> 22059.45331 | S11: ='B1.14'!S17 -> 22600.39345 | T11: ='B1.14'!T17 -> 22736.16042 | U11: ='B1.14'!U17 -> 23105.29882 | V11: ='B1.14'!V17 -> 23637.34732 | W11: ='B1.14'!W17 -> 24814.03037 | X11: ='B1.14'!X17 -> 26608.58184 | Y11: ='B1.14'!Y17 -> 29476 | Z11: ='B1.14'!Z17 -> 33529.75575
J12: Veřejné VŠ | K12: 19969.411 | L12: 22226.131 | M12: 25266.82354 | N12: 29235.67804 | O12: 30534.658 | P12: ='B1.14'!P18 -> 31781.06606 | Q12: ='B1.14'!Q18 -> 31760.67425 | R12: ='B1.14'!R18 -> 32786.53946 | S12: ='B1.14'!S18 -> 34045.43059 | T12: ='B1.14'!T18 -> 35419.875 | U12: ='B1.14'!U18 -> 36056.28843 | V12: ='B1.14'!V18 -> 36324.30555 | W12: ='B1.14'!W18 -> 36821.2662 | X12: ='B1.14'!X18 -> 39040.68698 | Y12: ='B1.14'!Y18 -> 42921.62192 | Z12: ='B1.14'!Z18 -> 46179.96047
J13: CELKEM Česká republika | K13: 17446 | L13: 18583 | M13: 19584 | N13: 22384 | O13: 22691 | P13: ='B1.14'!P14 -> 23344 | Q13: ='B1.14'!Q14 -> 23864 | R13: ='B1.14'!R14 -> 24455 | S13: ='B1.14'!S14 -> 25067 | T13: ='B1.14'!T14 -> 25035 | U13: ='B1.14'!U14 -> 25768 | V13: ='B1.14'!V14 -> 26591 | W13: ='B1.14'!W14 -> 27575 | X13: ='B1.14'!X14 -> 29504 | Y13: ='B1.14'!Y14 -> 31885 | Z13: ='B1.14'!Z14 -> 34125
J14: Nepodnikatelská sféra | K14: 17692 | L14: 18715 | M14: 19876 | N14: 22387 | O14: 23337 | P14: ='B1.14'!P15 -> 24432 | Q14: ='B1.14'!Q15 -> 24265 | R14: ='B1.14'!R15 -> 24469 | S14: ='B1.14'!S15 -> 25037 | T14: ='B1.14'!T15 -> 25255 | U14: ='B1.14'!U15 -> 25863 | V14: ='B1.14'!V15 -> 26807 | W14: ='B1.14'!W15 -> 28076 | X14: . | Y14: . | Z14: .
Z36: Zdroj: databáze MŠMT, ČSÚ

Sheet GB6
D4: Obr. B6 | H4: Školství celkem – průměrné reálné měsíční mzdy v letech 2009 až 2019
K10: 2003 | L10: 2004 | M10: 2005 | N10: 2007 | O10: 2008 | P10: 2009 | Q10: 2010 | R10: 2011 | S10: 2012 | T10: 2013 | U10: 2014 | V10: 2015 | W10: 2016 | X10: 2017 | Y10: 2018 | Z10: 2019
J11: RgŠ – všichni zřizovatelé | K11: ='GB5'!K11/'GB6'!K$16*100 -> 16448.07539 | L11: ='GB5'!L11/'GB6'!L$16*100 -> 17022.33231 | M11: ='GB5'!M11/'GB6'!M$16*100 -> 17712.68059 | N11: ='GB5'!N11/'GB6'!N$16*100 -> 23261.02494 | O11: ='GB5'!#REF!/'GB6'!O$16*100 ->  | P11: ='GB5'!P11/'GB6'!P$16*100 -> 23872.00143 | Q11: ='GB5'!Q11/'GB6'!Q$16*100 -> 23073.0626 | R11: ='GB5'!R11/'GB6'!R$16*100 -> 23269.46551 | S11: ='GB5'!S11/'GB6'!S$16*100 -> 23085.18228 | T11: ='GB5'!T11/'GB6'!T$16*100 -> 22896.43547 | U11: ='GB5'!U11/'GB6'!U$16*100 -> 23174.82329 | V11: ='GB5'!V11/'GB6'!V$16*100 -> 23637.34732 | W11: ='GB5'!W11/'GB6'!W$16*100 -> 24641.53959 | X11: ='GB5'!X11/'GB6'!X$16*100 -> 25808.51779 | Y11: ='GB5'!Y11/'GB6'!Y$16*100 -> 27992.40266 | Z11: ='GB5'!Z11/'GB6'!Z$16*100 -> 30960.06995
J12: Veřejné VŠ | K12: ='GB5'!K12/'GB6'!K$16*100 -> 20910.37801 | L12: ='GB5'!L12/'GB6'!L$16*100 -> 22656.60652 | M12: ='GB5'!M12/'GB6'!M$16*100 -> 25266.82354 | N12: ='GB5'!N12/'GB6'!N$16*100 -> 34273.94847 | O12: ='GB5'!#REF!/'GB6'!O$16*100 ->  | P12: ='GB5'!P12/'GB6'!P$16*100 -> 34657.6511 | Q12: ='GB5'!Q12/'GB6'!Q$16*100 -> 34151.26264 | R12: ='GB5'!R12/'GB6'!R$16*100 -> 34584.95724 | S12: ='GB5'!S12/'GB6'!S$16*100 -> 34775.72073 | T12: ='GB5'!T12/'GB6'!T$16*100 -> 35669.56193 | U12: ='GB5'!U12/'GB6'!U$16*100 -> 36164.78278 | V12: ='GB5'!V12/'GB6'!V$16*100 -> 36324.30555 | W12: ='GB5'!W12/'GB6'!W$16*100 -> 36565.30903 | X12: ='GB5'!X12/'GB6'!X$16*100 -> 37866.81569 | Y12: ='GB5'!Y12/'GB6'!Y$16*100 -> 40761.27438 | Z12: ='GB5'!Z12/'GB6'!Z$16*100 -> 42640.77605
J13: CELKEM Česká republika | K13: ='GB5'!K13/'GB6'!K$16*100 -> 18268.06283 | L13: ='GB5'!L13/'GB6'!L$16*100 -> 18942.91539 | M13: ='GB5'!M13/'GB6'!M$16*100 -> 19584 | N13: ='GB5'!N13/'GB6'!N$16*100 -> 26241.50059 | O13: ='GB5'!#REF!/'GB6'!O$16*100 ->  | P13: ='GB5'!P13/'GB6'!P$16*100 -> 25456.92475 | Q13: ='GB5'!Q13/'GB6'!Q$16*100 -> 25660.21505 | R13: ='GB5'!R13/'GB6'!R$16*100 -> 25796.4135 | S13: ='GB5'!S13/'GB6'!S$16*100 -> 25604.69867 | T13: ='GB5'!T13/'GB6'!T$16*100 -> 25211.48036 | U13: ='GB5'!U13/'GB6'!U$16*100 -> 25845.53661 | V13: ='GB5'!V13/'GB6'!V$16*100 -> 26591 | W13: ='GB5'!W13/'GB6'!W$16*100 -> 27383.31678 | X13: ='GB5'!X13/'GB6'!X$16*100 -> 28616.87682 | Y13: ='GB5'!Y13/'GB6'!Y$16*100 -> 30280.15195 | Z13: ='GB5'!Z13/'GB6'!Z$16*100 -> 31509.69529
J14: Nepodnikatelská sféra | K14: ='GB5'!K14/'GB6'!K$16*100 -> 18525.65445 | L14: ='GB5'!L14/'GB6'!L$16*100 -> 19077.47197 | M14: ='GB5'!M14/'GB6'!M$16*100 -> 19876 | N14: ='GB5'!N14/'GB6'!N$16*100 -> 26245.01758 | O14: ='GB5'!#REF!/'GB6'!O$16*100 ->  | P14: ='GB5'!P14/'GB6'!P$16*100 -> 26643.4024 | Q14: ='GB5'!Q14/'GB6'!Q$16*100 -> 26091.39785 | R14: ='GB5'!R14/'GB6'!R$16*100 -> 25811.18143 | S14: ='GB5'!S14/'GB6'!S$16*100 -> 25574.05516 | T14: ='GB5'!T14/'GB6'!T$16*100 -> 25433.03122 | U14: ='GB5'!U14/'GB6'!U$16*100 -> 25940.82247 | V14: ='GB5'!V14/'GB6'!V$16*100 -> 26807 | W14: ='GB5'!W14/'GB6'!W$16*100 -> 27880.83416 | X14: . | Y14: . | Z14: .
K16: 95.5 | L16: 98.1 | M16: 100 | N16: 85.3 | O16: 90.7 | P16: 91.7 | Q16: 93 | R16: 94.8 | S16: 97.9 | T16: 99.3 | U16: 99.7 | V16: 100 | W16: 100.7 | X16: 103.1 | Y16: 105.3 | Z16: 108.3
D30: Komentáře: | Z30: Zdroj: databáze MŠMT, ČSÚ
E31: Průměrná reálná měsíční mzda ve stálých cenách roku 2015.
